{"text_format":"1","workbook":"xlsx","n_sheets":1,"sheets":["conceptos"],"not_rendered":{"charts":0,"images":2,"macros":1,"external_links":0,"defined_names":1,"comments":0,"pivot_tables":0},"unopened":[],"bounds":{"document_bytes":16777216,"sheet_cells":100000,"rows_first":2000,"rows_last":500,"rows_between":2000,"halvings":0,"cell_chars":16384,"cell_head_chars":4096},"cells_cut":0,"cells_raw":0,"read":"whole","date_system":"1900"}

{"sheet":"conceptos","index":0,"n_rows":235,"n_cols":8,"rows_kept":235,"cut":false,"hidden":false,"merged":[[232,0,232,4],[233,0,234,4],[13,0,13,6],[0,2,0,5],[9,2,9,5],[1,2,3,5],[4,2,4,3],[6,2,6,3],[7,2,7,3],[4,4,4,5],[5,4,5,5],[6,4,6,5],[7,4,7,5],[10,2,10,5],[11,2,11,5],[5,1,8,1]]}
[null,"GOBIERNO DEL ESTADO DE JALISCO","LICITACIÓN PÚBLICA ESTATAL"]
[null,"INSTITUTO DE LA INFRAESTRUCTURA FÍSICA EDUCATIVA DEL","E-REM-B-CONA-04143-LP-0080-2020"]
[null,"ESTADO DE JALISCO"]
[]
[null,"DESCRIPCIÓN GENERAL DE LOS TRABAJOS:","FECHA DE INICIO:"]
[null,null,null,"FECHA DE TERMINACIÓN:"]
[null,null,"PLAZO DE EJECUCIÓN:"]
[null,null,"FECHA:"]
[]
[null,"RAZÓN SOCIAL DEL LICITANTE:","NOMBRE, CARGO Y FIRMA DEL LICITANTE:",null,null,null,"DOCUMENTO"]
[]
[]
[]
["PRESUPUESTO DE OBRA"]
[]
["CLAVE","DESCRIPCIÓN","UNIDAD","CANTIDAD","PRECIO UNITARIO ($)","PRECIO UNITARIO ($) CON LETRA","IMPORTE ($) M.N."]
["TRABAJO : BAS-CONA-04143","CONSTRUCCIÓN DE NÚCLEO DE SERVICIOS SANITARIOS Y REHABILITACIÓN GENERAL EN LA ESCUELA PRIMARIA AMADO NERVO CCT14EPR0663E, UBICADA EN LA LOCALIDAD CAMAJAPITA, MUNICIPIO DE SAN MARTÍN HIDALGO, JALISCO. ",null,null,null,null,{"$f":"TEXT(SUM(G18 + G50 + G169 + G185 + G190 + G195), \"$ #,##0.00 ;\")","v":"$ 0.00 "}]
["EDFS","EDIFICIOS",null,null,null,null,{"$f":"TEXT(SUM(G19 + G26 + G28 + G39 + G42), \"$ #,##0.00 ;\")","v":"$ 0.00 "}]
["EDFS.01(140)","DEMOLICIONES, DESMONTAJES Y MECANICA DE SUELOS    ",null,null,null,null,{"$f":"TEXT(SUM(G20:G25), \"$ #,##0.00 ;\")","v":"$ 0.00 "}]
[140018,"DEMOLICION DE CONSTRUCCION EXISTENTE INCLUYE: CIMIENTOS, MUROS, CADENAS, CASTILLOS, PISOS, CUBIERTA A BASE DE BOVEDA DE CUÑA,  DESMANTELAMIENTO DE PERFILES ESTRUCTURALES TIPO IPS,  CANCELERIA, RECUBRIMIENTOS, (SIN RECUPERACION) ETC., ACARREO DENTRO Y FUERA DE LA OBRA DEL MATERIAL. MEDIDO POR M2 CONSTRUIDO.(PROYECCION DE CUBIERTA).\n","M2 ","64.0000",0,"CERO PESOS 00/100 M.N.",0,266340]
[140028,"DESMONTAR LAMINA PINTRO EN EDIFICIO EXISTENTE, SIN RECUPERACION,  INCLUYE: DESMONTAJE DE CABALLETE DE LAMINA, LIMPIEZA, RETIRO DEL MATERIALES DE DESHECHO FUERA DE LA OBRA, HERRAMIENTAS, EQUIPO DE SEGURIDAD Y MANO DE OBRA.","M2 ","427.0000",0,"CERO PESOS 00/100 M.N.",0,266341]
[140030,"RETIRO DE TEJA IMPERLAM SIN RECUPERACION, INCLUYE: DESMONTAJE DE CABALLETE DE CONCRETO,  ACARREO DENTRO Y FUERA DE LA OBRA DEL MATERIAL EN MAL ESTADO, MANO DE OBRA Y HERRAMIENTA.","M2 ","427.0000",0,"CERO PESOS 00/100 M.N.",0,266342]
[140103,"DESINSTALACION DE SALIDAS ELECTRICAS, APAGADORES Y CONTACTOS. INCLUYE: ACARREO Y ACOMODO DEL MATERIAL, PARA SU ENTREGA A BODEGA.\n","SAL","64.0000",0,"CERO PESOS 00/100 M.N.",0,266343]
[140263,"RASPADO DE PINTURA EXISTENTE EN MUROS, LOSAS, TRABES Y COLUMNAS, INCLUYE: ANDAMIOS, HERRAMIENTAS, LIMPIEZA, MANO DE OBRA Y RETIRO DEL MATERIAL RESULTANTE FUERA DE LA OBRA. A CUALQUIER ALTURA.","M2 ","500.0000",0,"CERO PESOS 00/100 M.N.",0,266344]
[140313,"DEMOLICION DE HORMIGON DE ENTREPISO Y/O AZOTEA, CON UN ESPESOR DE 8 CMS. PROMEDIO, INCLUYE: HERRAMIENTAS, ANDAMIOS,  ACARREOS, MANO DE OBRA, LIMPIEZA DEL AREA DE TRABAJO Y RETIRO DE MATERIAL PRODUCTO DE LA DEMOLICION FUERA DE LA OBRA.\n","M2 ","427.0000",0,"CERO PESOS 00/100 M.N.",0,266345]
["EDFS.02(200)","ESTRUCTURA                                        ",null,null,null,null,{"$f":"TEXT(SUM(G27:G27), \"$ #,##0.00 ;\")","v":"$ 0.00 "}]
[290949,"REHABILITACION DE ESTRUCTURA METALICA EXISTENTE A BASE  DE COLUMNAS METALICAS, TRABES Y LARGUEROS DE CANAL MONTEN, DE CULAQUIER CALIBRE, INCLUYE: ENDEREZADO, MANO DE OBRA CALIFICADA, HERRAMIENTA Y EQUIPO NECESARIOS, LIMPIEZA, CORTES, SOLDADURA, REPOSICION DE PARTES EN MAL ESTADO Y / O FALTANTES, PINTURA ANTICORROSIVA Y TODO LO NECESARIO PARA DEJAR LA ESTRUCTURA BIEN PLOMEADA Y EN PERFECTO ESTADO PARA SU REUTILIZACION.","KG ","2,970.0000",0,"CERO PESOS 00/100 M.N.",0,266374]
["EDFS.03(319)","ENTREPISOS, CUBIERTA Y ACABADOS DE AZOTEA         ",null,null,null,null,{"$f":"TEXT(SUM(G29:G38), \"$ #,##0.00 ;\")","v":"$ 0.00 "}]
[192512,"SUMINISTRO Y COLOCACION DE ANCLAJE EN CADENA SUPERIOR PARA SUJECION DE CANAL DE CONEXION, A BASE DE 2 ANCLAS DE 1\" X 1/4\" X 15.0 CM. DE LONGITUD, SOLDADAS A UN OPRESOR FORMADO POR 2 SOLERAS DE 1 1/2\" X 1/8\" X 20.0 CM DE LONG., OPRIMIDAS POR 2 TORNILLOS DE 1/2\" DE DIAM. INCLUYE TUERCAS.","PZA","4.0000",0,"CERO PESOS 00/100 M.N.",0,266389]
[285008,"SUMINISTRO, HABILITADO Y MONTAJE DE ESTRUCTURA A BASE DE POLIN-MONTEN EN DIFERENTES PERALTES Y ESPESORES, INCLUYE: MATERIALES MENORES Y DE CONSUMO, TRAZO, CORTES, AJUSTES, DESPERDICIOS, TORNILLERÍA, DESCALIBRES, BARRENOS, SOLDADURA, PRUEBAS RADIOGRAFICAS, PINTURA ANTICORROSIVA, MANO DE OBRA CALIFICADA, HERRAMIENTA, EQUIPO, FLETES, ELEVACIONES, ACARREOS DE MATERIALES AL SITIO DE SU COLOCACION, ACUALQUIER ALTURA. ","KG ","412.7500",0,"CERO PESOS 00/100 M.N.",0,266390]
[285015,"SUMINISTRO, HABILITADO Y MONTAJE DE CANAL DE CONEXION, A BASE DE LAMINA NEGRA DOBLADA EN FRIO  Y SOLDADA ESPALDA CON ESPALDA, DE 8 1/4\" X 2\", INCLUYE: SOLERA DE 1 1/4\" X 1/8\" X 20, MATERIALES MENORES Y DE CONSUMO, TRAZO, CORTES, AJUSTES, DESPERDICIOS, TORNILLERÍA, DESCALIBRES, BARRENOS, SOLDADURA, PINTURA ANTICORROSIVA, MANO DE OBRA CALIFICADA, HERRAMIENTA, EQUIPO, FLETES, ELEVACIONES, ACARREOS DE MATERIALES AL SITIO DE SU COLOCACION, ACUALQUIER ALTURA.","KG ","117.4000",0,"CERO PESOS 00/100 M.N.",0,266391]
[326022,"SUMINISTRO Y COLOCACION DE LAMINA PINTRO  CALIBRE 24 , INCLUYE: GANCHOS, ELEMENTOS DE FIJACION, CORTES, AJUSTES, TRASLAPES, DESPERDICIOS Y ACARREO DE MATERIALES AL LUGAR DE SU UTILIZACION, A CUALQUIER NIVEL.","M2 ","41.4700",0,"CERO PESOS 00/100 M.N.",0,266392]
[326065,"SUMINISTRO Y COLOCACION DE PANEL BILAMINADO Y ACANALADO PARA CUBIERTA DE AZOTEA, COMPUESTO POR UN NUCLEO DE ESPUMA RIGIDA DE POLIURETANO DE 1 ½\" DE ESPESOR Y DOS CARAS DE LAMINA PINTRO CAL. 26, CON ACABADO POLIESTER ESTANDAR EN COLORES BLANCO Y ARENA, INCLUYE: ELEMENTOS DE FIJACION, CORTES, AJUSTES, TRASLAPES, DESPERDICIOS, TAPAJUNTAS, HERRAMIENTAS, ANDAMIOS, LIMPIEZA, MANO DE OBRA  Y ACARREO DE MATERIALES AL LUGAR DE SU UTILIZACION, A CUALQUIER ALTURA.","M2 ","427.0000",0,"CERO PESOS 00/100 M.N.",0,266393]
[326522,"SUMINISTRO Y COLOCACION DE CABALLETE DE LAMINA PINTRO CALIBRE 24. INCLUYE MATEIALES DE FIJACION GANCHOS, TRASLAPES, DESPERDICIOS Y ACARREO DE MATERIALES AL LUGAR DE SU UTILIZACION, A CUALQUIER NIVEL.","ML ","7.2000",0,"CERO PESOS 00/100 M.N.",0,266394]
[326565,"SUMINISTRO Y COLOCACION DE CABALLETE PARA CUBIERTA ACANALADA DE PANEL BILAMINADO, DE LAMINA PINTRO CALIBRE 26, DE 45.7 CM. DE DESARROLLO, COLOR ARENA,  INCLUYE: TRASLAPES, ACCESORIOS PARA SU COLOCACION, DESPERDICIOS, HERRAMIENTAS, ANDAMIOS, LIMPIEZAS, MANO DE OBRA Y ACARREO DE MATERIALES AL LUGAR DE SU UTILIZACION, A CUALQUIER ALTURA. ","ML ","43.0000",0,"CERO PESOS 00/100 M.N.",0,266395]
[326745,"SUMINISTRO Y COLOCACION DE TAPAGOTERO PARA CUBIERTA ACANALADA DE PANEL BILAMINADO, DE LAMINA PINTRO CALIBRE 22 DE 22.5 CM. DE DESARROLLO, COLOR ARENA, INCLUYE: ELEMENTOS DE FIJACION, CORTES, AJUSTES, TRASLAPES, DESPERDICIOS, HERRAMIENTAS, ANDAMIOS, LIMPIEZA, MANO DE OBRA  Y ACARREO DE MATERIALES AL LUGAR DE SU UTILIZACION, A CUALQUIER ALTURA.","ML ","142.0000",0,"CERO PESOS 00/100 M.N.",0,266396]
[326755,"SUMINISTRO Y COLOCACION DE TAPAGOTERO DE AJUSTE DE CUMBRERAS DE 22.5 CM DE DESARROLLO Y 38.6 CM. DE LONGITUD PARA CUBIERTA ACANALADA DE PANEL BILAMINADO, DE LAMINA PINTRO CALIBRE 22, COLOR ARENA, INCLUYE: ELEMENTOS DE FIJACION, TRASLAPES,  HERRAMIENTAS, ANDAMIOS, LIMPIEZA, MANO DE OBRA  Y ACARREO DE MATERIALES AL LUGAR DE SU UTILIZACION, A CUALQUIER ALTURA.","PZA","2.0000",0,"CERO PESOS 00/100 M.N.",0,266397]
[326765,"SUMINISTRO Y COLOCACION DE TAPAGOTERO DE AJUSTE ESQUINERO PARA CUBIERTA ACANALADA DE PANEL BILAMINADO, DE LAMINA PINTRO CALIBRE  22, DE 50 X 50 CM. DE LONGITUD POR LADO Y 22.5 MTS DE DESARROLLO, COLOR ARENA, INCLUYE: ELEMENTOS DE FIJACION, TRASLAPES,  HERRAMIENTAS, ANDAMIOS, LIMPIEZA, MANO DE OBRA  Y ACARREO DE MATERIALES AL LUGAR DE SU UTILIZACION, A CUALQUIER ALTURA.","PZA","4.0000",0,"CERO PESOS 00/100 M.N.",0,266398]
["EDFS.04(393)","PINTURA                                           ",null,null,null,null,{"$f":"TEXT(SUM(G40:G41), \"$ #,##0.00 ;\")","v":"$ 0.00 "}]
[393022,"PINTURA VINIL-ACRÍLICA A BASE DE AGUA ACABADO SEMIMATE  LAVABLE, PARA INTERIORES Y EXTERIORES QUE NO DESPRENDA VAPORES TÓXICOS NI OLORES DESAGRADABLES, CON LAS SIGUIENTES CARACTERÍSTICAS ( SÓLIDOS POR PESO 46-52%, SÓLIDOS POR VOLUMEN 30-36%, VISCOSIDAD DE 100-130 UK A 25°C, DENSIDAD > O = 1.2 TON/M3., LAVABILIDAD > O = 4,000 CICLOS, TIEMPO DE SECADO AL TACTO, 30-40 MIN., TIEMPO DE SECADO DURO < O = 8 HRS., CICLO DE CURADO DE 7 DIAS, PH 6-8, RENDIMIENTO EN SUP. LISA 8-10 M2/LT., FINEZA DE MOLIDO (HEGMAN) 3-7 UH.)  EN MUROS APLANADOS DE MEZCLA APALILLADO O PULIDO, TRABAJO TERMINADO, A DOS MANOS, INCLUYE: MATERIALES MENORES Y DE CONSUMO, ANDAMIOS, PREPARACION DE LA SUPERFICIE, SELLADO DE LA SUPERFICIE, HERRAMIENTAS, LIMPIEZA, MANO DE OBRA Y  ACARREOS DE MATERIALES AL SITIO DE SU UTILIZACIÓN.","M2 ","1.0000",0,"CERO PESOS 00/100 M.N.",0,266417]
[393216,"PINTURA DE ESMALTE ALQUIDALICO ANTICORROSIVO, ACABADO BRILLANTE, PARA INTERIORES Y EXTERIORES QUE NO DESPRENDA VAPORES TÓXICOS NI OLORES DESAGRADABLES, CON LAS SIGUIENTES CARACTERÍSTICAS ( SÓLIDOS POR PESO 49-60%, SÓLIDOS POR VOLUMEN 40-46%, VISCOSIDAD DE 110-160 UK A 25°C, DENSIDAD 0.9-1.2 TON/M3., BRILLO A 60°C, 90%, TIEMPO DE SECADO AL TACTO, < O = 6 HRS., TIEMPO DE SECADO DURO < O = 24 HRS., ADHERENCIA 100%, RENDIMIENTO EN SUP. LISA 8-10 M2/LT., DILUCIÓN MÁXIMA (AGUARRÁS, THINER), 15 %,  EN ESTRUCTURA DE CUBIERTA, A BASE DE LARGUEROS DE POLINES MON-TEN, TENSORES Y CONEXIONES, TRABAJO TERMINADO, A DOS MANOS, INCLUYE: MATERIALES MENORES Y DE CONSUMO, ANDAMIOS, PREPARACION DE LA SUPERFICIE, HERRAMIENTAS, LIMPIEZA, MANO DE OBRA Y  EQUIPO DE SEGURIDAD. A CUALQUIER NIVEL. (PROYECCIÓN DE CUBIERTA).","M2 ","427.0000",0,"CERO PESOS 00/100 M.N.",0,266420]
["EDFS.05(510)","INSTALACION ELECTRICA EN EDIFICIO                 ",null,null,null,null,{"$f":"TEXT(SUM(G43:G49), \"$ #,##0.00 ;\")","v":"$ 0.00 "}]
[514006,"SALIDA ELECTRICA DE CENTRO AISLADA, VISIBLE, CON TUBERIA Y CONEXIONES CONDUIT GALVANIZADA P.G., ROSCADA DE 13 MM. DE DIAMETRO, CABLE VINANEL THW-LS 600 V. A 75° C, 90° C, MARCA CONDUCTORES MONTERREY, (VIAKON-PROTOCOLIZADO), CABLE VINANEL 21 THW-LS 600 V. A 75° C, 90° C, MARCA CONDUMEX (CONDUMEX PROTOCOLIZADO).  CALIBRE 12, CAJAS CUADRADAS, CHALUPAS Y TAPAS GALVANIZADAS, INCLUYE: TRAZO, MATERIALES MENORES Y DE FIJACION, HERRAMIENTA, MANO DE OBRA ESPECIALIZADA , CONEXIONES, LIMPIEZA DEL AREA DE TRABAJO, PRUEBAS, DESPERDICIOS Y ACARREO DEL MATERIAL AL SITIO DE SU COLOCACION, A CUALQUIER NIVEL.","SAL","40.0000",0,"CERO PESOS 00/100 M.N.",0,266437]
[518012,"SALIDA ELECTRICA PARA CONTACTO DUPLEX POLARIZADO MONOFASICO VISIBLE CON CONDULET OVALADO EN SU TRAYECTORIA, 1F, HASTA 1.5HP, 2P, 3H PUESTA A TIERRA, 20 A, 127 V, CATALOGO MARFIL 5362-1 MCA. ARROW HART CON PLACA DE ALUMINIO DUPLEX  CAT.95101 EN CONDULET FS EN SU SALIDA., CON TUBERIA Y CONEXIONES CONDUIT GALVANIZADA P.G., ETIQUETA VERDE DE AJUSTE DE 13 Y 19MM. DE DIAMETRO, CABLE VINANEL THW-LS 900 MCA. CONDUMEX, CONELEC O CONDUCTORES MONTERREY CAL.10 Y 12, CAJAS CUADRADAS CHALUPAS Y TAPAS GALVANIZADAS. INCLUYE: SOPORTERIA UNICANAL CONEXION A TIERRA, MATERIALES MENORES, PRUEBAS, DESPERDICIOS Y ACARREO DEL MATERIAL AL SITIO DE SU COLOCACION, A CUALQUIER ALTURA.\n","SAL","16.0000",0,"CERO PESOS 00/100 M.N.",0,266439]
[522121,"SALIDA ELECTRICA DE APAGADOR SENCILLO, VISIBLE, CON CANALETA DE PVC DE 17 X 20 MM. Y CONEXIONES DE PVC, CABLE VINANEL THW-LS 600 V. A 75° C, 90° C, MARCA CONDUCTORES MONTERREY, (VIAKON-PROTOCOLIZADO), CABLE VINANEL 21 THW-LS 600 V. A 75° C, 90° C, MARCA CONDUMEX (CONDUMEX PROTOCOLIZADO). CALIBRE 12,  ACCESORIOS QUINZIÑO, INCLUYE: CONEXIONES, MATERIALES MENORES Y DE COSNSUMO, ELEMENTOS DE FIJACION, ACCESORIOS, PRUEBAS, DESPERDICIOS, HERRAMIENTAS, LIMPIEZA, MANO DE OBRA ESPECIALIZADA Y ACARREO DEL MATERIAL AL SITIO DE SU COLOCACION, A CUALQUIER NIVEL.","SAL","8.0000",0,"CERO PESOS 00/100 M.N.",0,266441]
[540032,"SUMINISTRO Y COLOCACION DE CENTRO DE CARGAS TIPO QOD-8, MCA. SQUARE D, INCLUYE: ELEMENTOS DE FIJACION,  PRUEBAS, MATERIALES MENORES Y DE CONSUMO, CONEXIONES, LIMPIEZAS, HERRAMIENTAS, MANO DE OBRA ESPECIALIZADA Y ACARREO DE MATERIALES AL SITIO DE SU COLOCACION.","PZA","1.0000",0,"CERO PESOS 00/100 M.N.",0,266444]
[543012,"SUMINISTRO Y COLOCACION DE INTERRUPTOR TERMOMAGNETICO DERIVADO CON 1 POLOS, DE 15-60 AMPERES, MCA. SQUARE D, CAT. QO. INCLUYE: PRUEBAS, MATERIALES MENORES, HERRAMIENTAS, MANO DE OBRA ESPECIALIZADA  Y ACARREO DE MATERIALES AL SITIO DE SU COLOCACION.","PZA","8.0000",0,"CERO PESOS 00/100 M.N.",0,266446]
[550090,"SUMINISTRO E INSTALACION DE LUMINARIO FLUORESCENTE DE SOBREPONER, TIPO ENVOLVENTE, AHORRADOR DE ENERGIA DE 2 X 32 WATTS. FABRICADO EN LAMINA CAL 22, RECUBIERTO CON TRATAMIENTO FOSFATIZADO Y PINTURA ACRILICA O POLIESTER COLOR BLANCO, APLICADA ELECTROSTATICAMENTE Y TERMOENDURECIDA, PARA OBTENER UNA REFLECTANCIA MINIMA DE 90%, CON DIFUSOR ACRILICO PRISMATICO 100% PURO, TIPO ENVOLVENTE, CON UNA LONGITUD DE 120 CM., BALASTRO ELECTRONICO DE BAJA EMISION DE ARMONICAS, PARA OPERAR UNA O DOS LAMPARAS T8 DE 32 WATTS, LA LUMINARIA (COMPLETA) DEBERA CUMPLIR CON LA NORMA ANCE, INCLUYE: COPIA DE CERTIFICACION ANCE ANEXA EN ELTRAMITE DE LA ESTIMACION, FIJACION, CONEXION, MATERIALES MENORES, HERRAMIENTAS, GARANTIAS,  MANO DE OBRA, PRUEBAS Y ACARREOS.","PZA","8.0000",0,"CERO PESOS 00/100 M.N.",0,266451]
[550190,"SUMINISTRO E INSTALACION DE LUMINARIO FLUORESCENTE DE SOBREPONER, TIPO ENVOLVENTE, AHORRADOR DE ENERGIA DE 2 X 59 WATTS. FABRICADO EN LAMINA CAL 22, RECUBIERTO CON TRATAMIENTO FOSFATIZADO Y PINTURA ACRILICA O POLIESTER COLOR BLANCO, APLICADA ELECTROSTATICAMENTE Y TERMOENDURECIDA, PARA OBTENER UNA REFLECTANCIA MINIMA DE 90%, CON DIFUSOR ACRILICO PRISMATICO 100% PURO, TIPO ENVOLVENTE, CON UNA LONGITUD DE 240 CM., BALASTRO ELECTRONICO DE BAJA EMISION DE ARMONICAS, PARA OPERAR UNA O DOS LAMPARAS T8 DE 59 WATTS, (EQUIVALENTE A 4 LAMPARAS T8 DE 32 WATTS.), LA LUMINARIA (COMPLETA) DEBERA CUMPLIR CON LA NORMA ANCE, INCLUYE: COPIA DE CERTIFICACION ANCE ANEXA EN EL TRAMITE DE LA ESTIMACION, FIJACION, CONEXION, MATERIALES MENORES, HERRAMIENTAS, GARANTIAS, MANO DE OBRA, PRUEBAS Y ACARREOS.","PZA","32.0000",0,"CERO PESOS 00/100 M.N.",0,266452]
["E","EDIFICIO E",null,null,null,null,{"$f":"TEXT(SUM(G51 + G53 + G58 + G75 + G84 + G98 + G100 + G105 + G114 + G118 + G123 + G129 + G141 + G151 + G157), \"$ #,##0.00 ;\")","v":"$ 0.00 "}]
["E.01(140)","DEMOLICIONES, DESMONTAJES Y MECANICA DE SUELOS    ",null,null,null,null,{"$f":"TEXT(SUM(G52:G52), \"$ #,##0.00 ;\")","v":"$ 0.00 "}]
[140602,"DEMOLICION DE FIRME Y/O PISO DE CONCRETO DE 10 CM DE ESPESOR PROMEDIO, EN SECCIONES OBLIGADAS, INC. CORTE CON DISCO PARA DELIMITAR AREA DE DEMOLICION; MANO DE OBRA, HERRAMIENTA, EQUIPO,  CARGA Y ACARREO INTERIOR Y FUERA DE LA OBRA DEL MATERIAL PRODUCTO DE LA DEMOLICION.","M2 ","89.5000",0,"CERO PESOS 00/100 M.N.",0,266346]
["E.02(150)","TRABAJOS PRELIMINARES                             ",null,null,null,null,{"$f":"TEXT(SUM(G54:G57), \"$ #,##0.00 ;\")","v":"$ 0.00 "}]
[150110,"TRAZO Y NIVELACION DE EDIFICIOS ESTABLECIENDO REFERENCIAS DEFINITIVAS, CON TRANSITO Y NIVEL (EQUIPO TOPOGRAFICO), INCLUYE: PERSONAL TECNICO CALIFICADO, ESTACAS, MOJONERAS, LOCALIZACION DE ENTRE EJES, BANCOS DE NIVEL, MATERIALES PARA SEÑALAMIENTO, EQUIPO, HERRAMIENTA Y MANO DE OBRA.","M2 ","89.5000",0,"CERO PESOS 00/100 M.N.",0,266347]
[152206,"EXCAVACION EN CEPAS POR CUALQUIER MEDIO, MATERIAL TIPO \"C\", (TEPETATE O BOLEOS EMPACADOS HASTA 50%) DE 0 A 2.00 M. DE PROFUNDIDAD, EN SECO, INCLUYE: AFINE DE TALUDES Y FONDO, TRAPALEOS,  MOVIMIENTOS Y ACARREOS DENTRO DE LA OBRA, HERRAMIENTAS Y MANO DE OBRA, MEDIDO EN BANCO.","M3 ","47.3900",0,"CERO PESOS 00/100 M.N.",0,266348]
[152406,"EXCAVACION A CIELO ABIERTO POR CUALQUIER MEDIO, MATERIAL TIPO \"C\", (TEPETATE O BOLEOS EMPACADOS HASTA 50%) DE 0 A 2.00 M. DE PROFUNDIDAD, EN SECO, INCLUYE: AFINE DE TALUDES Y FONDO, TRAPALEOS,  MOVIMIENTOS Y ACARREOS DENTRO DE LA OBRA, HERRAMIENTAS Y MANO DE OBRA, MEDIDO EN BANCO.","M3 ","17.8800",0,"CERO PESOS 00/100 M.N.",0,266349]
[156002,"CARGA POR CUALQUIER MEDIO Y ACARREO EN CAMION DE MATERIAL DE DESPERDICIO PRODUCTO DE LAS EXCAVACIONES FUERA DE LA OBRA, A LUGAR PERMITIDO POR LAS AUTORIDADES CORRESPONDIENTES, MEDIDO EN BANCO. INCLUYE CARGA,  ACARREO Y DESCARGA A TIRO LIBRE, HERRAMIENTA, EQUIPO, MATERIALES DE CONSUMO Y MANO DE OBRA.","M3 ","65.2700",0,"CERO PESOS 00/100 M.N.",0,266350]
["E.03(160)","CIMENTACION                                       ",null,null,null,null,{"$f":"TEXT(SUM(G59:G74), \"$ #,##0.00 ;\")","v":"$ 0.00 "}]
[160222,"PLANTILLA DE CONCRETO F'C=100 KG/CM2, TMA=3/4\", DE 5.00 CM DE ESPESOR PROMEDIO. INCLUYE: MATERIALES, HERRAMIENTAS, AFINE, NIVELACION, LIMPIEZA, MANO DE OBRA Y ACARREO DE MATERIALES AL SITIO DE SU UTILIZACION.","M2 ","32.5400",0,"CERO PESOS 00/100 M.N.",0,266351]
[166299,"SUMINISTRO Y FABRICACION DE CONTRATRABE EN CIMENTACION DE  CONCRETO DE F´C=250 KG/CM2, TMA 3/4\" R.N CON DIMENSIONDE DE 0.21 X 0.35 M. ARMADA CON 4 VAR. # 4 + 2 VAR. DEL # 3 Y ESTRIBOS DEL #2@15 +  GRAPAS DEL #2@25 CM. PROMEDIO, INCLUYE: ARMADO, COLADO, CURADO, VIBRADO, CIMBRA COMUN, DESCIMBRA, DESPERDICIOS, TRASLAPES, CRUCES DE VARILLAS CON ELEMENTOS TRANSVERSALES, OCHAVOS EN ARISTAS, MANO DE OBRA, HERRAMIENTA Y ACARREO DE MATERIALES AL SITIO DE SU UTILIZACION, A CUALQUIER ALTURA.","ML ","8.8000",0,"CERO PESOS 00/100 M.N.",0,266352]
[166301,"SUMINISTRO Y FABRICACION DE CONTRATRABE EN CIMENTACION DE  CONCRETO DE F´C=250 KG/CM2, TMA 3/4\" R.N CON DIMENSIONDE DE 0.14 X 0.35 M. ARMADA CON 4 VARILLAS # 3 Y E.N° 2 @ 15 CM. PROMEDIO, INCLUYE: CIMBRA COMUN, DESCIMBRADO, CURADO, VIBRADO, CRUCES DE ACERO CON ELEMENTOS TRANSVERSALES,  PRUEBAS, MATERIALES MENORES Y TODO LO NECESARIO PARA SU CORRECTA EJECUCION.","ML ","15.6000",0,"CERO PESOS 00/100 M.N.",0,266353]
[166303,"SUMINISTRO Y FABRICACION DE CONTRATRABE EN CIMENTACION DE CONCRETO DE F´C=250 KG/CM2, TMA 3/4\" R.N CON DIMENSIONDE DE 0.14 X 0.35 M. ARMADA CON 4 VARILLAS # 4 Y E.N° 2 @ 15 CM. PROMEDIO, INCLUYE: ARMADO, COLADO, CURADO, VIBRADO, PRUEBAS DEL CONCRETO, CIMBRA COMUN, DESCIMBRA, DESPERDICIOS, TRASLAPES, CRUCES DE VARILLAS CON ELEMENTOS TRANSVERSALES, ANDAMIOS, MANO DE OBRA, HERRAMIENTA Y ACARREO DE MATERIALES AL SITIO DE SU UTILIZACION, A CUALQUIER ALTURA.","ML ","7.8000",0,"CERO PESOS 00/100 M.N.",0,266354]
[167210,"CADENA PARA REMATE DE CIMENTACION, DE CONCRETO F'C=250 KG/CM2, T.M.A.=3/4\", CON SECCION DE 14 X 20 CMS., ARMADA CON 4 VARILLAS DEL # 3 Y ESTRIBOS DEL NO. 2 @ 20 CMS., INCLUYE: ARMADO, COLADO, CURADO, VIBRADO, CIMBRA COMUN, DESCIMBRA, DESPERDICIOS, MANO DE OBRA, HERRAMIENTA, MATERIALES Y ACARREO DE MATERIALES AL SITIO DE SU UTILIZACION.","ML ","10.6600",0,"CERO PESOS 00/100 M.N.",0,266355]
[170012,"CIMBRA  ACABADO COMUN, EN CIMENTACION, INCLUYE: DESPERDICIO, HABILITADO, CIMBRADO Y DESCIMBRA, NIVELACION, PLOMEO MATERIAL, MANO DE OBRA , LIMPIEZA, HERRAMIENTA, ACARREO DEL MATRIAL DENTRO Y FUERA DE LA OBRA.","M2 ","12.6700",0,"CERO PESOS 00/100 M.N.",0,266356]
[173003,"SUMINISTRO, HABILITADO, ARMADO Y COLOCACION DE ACERO DE REFUERZO FY=4,200 KG/CM2 (G.E.), DE 3/8\" ( #3 ), EN CIMENTACION, INCLUYE: MATERIALES, HABILITADO,  DOBLECES,  SILLETAS, ALAMBRE, GANCHOS, ESCUADRAS, TRASLAPES, DESPERDICIOS HERRAMIENTAS, MANO DE OBRA Y ACARREO DE MATERIALES AL SITIO DE SU COLOCACION.","KG ","108.4500",0,"CERO PESOS 00/100 M.N.",0,266357]
[173004,"SUMINISTRO, HABILITADO, ARMADO Y COLOCACION DE ACERO DE REFUERZO FY=4,200 KG/CM2 (G.E.), DE 1/2\" ( #4 ), EN CIMENTACION, INCLUYE: MATERIALES, HABILITADO,  DOBLECES,  SILLETAS, ALAMBRE, GANCHOS, ESCUADRAS, TRASLAPES, DESPERDICIOS HERRAMIENTAS, MANO DE OBRA Y ACARREO DE MATERIALES AL SITIO DE SU COLOCACION.","KG ","42.9000",0,"CERO PESOS 00/100 M.N.",0,266358]
[176008,"SUMINISTRO Y COLOCACION DE CONCRETO HECHO EN OBRA F'C=250 KG/CM2, TMA= 3/4\", R.N. EN CIMENTACION. INCLUYE: TENDIDO, RASTREADO, VIBRADO, NIVELACION, HERRAMIENTAS, LIMPIEZA, PRUEBAS,  CURADO CON CURACRETO ROJO,  DESPERDICIO Y MANO DE OBRA.","M3 ","3.0900",0,"CERO PESOS 00/100 M.N.",0,266359]
[180054,"RELLENO EN CEPAS POR CUALQUIER MEDIO, CON MATERIAL DE BANCO, (ARENA LIMOSA) COMPACTADO AL 95% PROCTOR, EN CAPAS DE 15 CM, MEDIDO COMPACTO. INCLUYE:  SUMINISTRO DE AGUA PARA LOGRAR HUMEDAD OPTIMA, DESPERDICIOS, TENDIDO, TRASPALEOS,  EQUIPO, PRUEBAS DE COMPACTACION, AFINE, NIVELACION, HERRAMIENTAS, MANO DE OBRA Y  ACARREO HASTA EL SITIO DE SU COLOCACION.  (VOLUMEN MEDIDO COMPACTADO).","M3 ","15.3300",0,"CERO PESOS 00/100 M.N.",0,266360]
[180417,"RELLENO CON MATERIAL DE BANCO, AGREGANDO CALHIDRA EN PROPORCION 25 KG/M3, COMPACTADO AL 95% PROCTOR EN CAPAS DE 15 CM., A CUALQUIER PROFUNDIDAD, INCLUYE: MEZCLADO, TENDIDO, INCORPORACION DE AGUA PARA LOGRAR HUMEDAD OPTIMA, COMPACTACION POR MEDIOS CUALQUIER MEDIO, NIVELADO, TRASPALEOS, PRUEBAS DE COMPACTACION Y LOS ACARREOS NECESARIOS. MEDIDO COMPACTO.","M3 ","13.0200",0,"CERO PESOS 00/100 M.N.",0,266361]
[180914,"RELLENO COMPACTADO CON EQUIPO MECANICO DE SUELO-GRAVA, A BASE DE MATERIAL DE BANCO  (TEPETATE, ARENA, ETC) Y GRAVA DE 3/4\" DE DIAMETRO A FINOS, CON UNA PROPORCION DE 50-50 %, EN VOLUMEN, A CUALQUIER PROFUNDIDAD, COMPACTADO AL 95% PROCTOR, EN CAPAS DE 15 CM. INCLUYE: SUMINISTRO DE AGUA PARA LOGRAR HUMEDAD OPTIMA, MEZCLACO, TENDIDO, TRASPALEOS,  DESPERDICIOS, EQUIPO, PRUEBAS DE COMPACTACION, AFINE, NIVELACION, HERRAMIENTAS, MANO DE OBRA Y  ACARREO HASTA EL SITIO DE SU COLOCACION.  (VOLUMEN MEDIDO COMPACTADO).","M3 ","49.2000",0,"CERO PESOS 00/100 M.N.",0,266362]
[190022,"MURETE DE ENRRASE EN CIMENTACION CON BLOCK SOLIDO DE JALCRETO 11 X 14 X 28 CM DE SECCION, A SOGA, ASENTADO CON MORTERO CEMENTO-ARENA EN PROP. 1:3, ACABADO COMUN, INCLUYE:TRAZO, NIVELACION, PLOMEO, HERRAMIENTAS, DESPERDICIOS, MANO DE OBRA, LIMPIEZA Y ACARREO DE MATERIALES AL SITIO DE SU UTILIZACION.","M2 ","26.2500",0,"CERO PESOS 00/100 M.N.",0,266363]
[190042,"MURETE DE ENRRASE EN CIMENTACION CON BLOCK SOLIDO DE JALCRETO 11 X 14 X 28 CM DE SECCION, A TEZON, ASENTADO CON MORTERO CEMENTO-ARENA EN PROP. 1:3, ACABADO COMUN, INCLUYE:TRAZO, NIVELACION, PLOMEO, HERRAMIENTAS, DESPERDICIOS, MANO DE OBRA, LIMPIEZA Y ACARREO DE MATERIALES AL SITIO DE SU UTILIZACION.","M2 ","14.7000",0,"CERO PESOS 00/100 M.N.",0,266364]
[192514,"ANCLAJE DE CASTILLO EN CIMENTACION 14 X 20 CMS., CONCRETO F'C=250 KG/CM2, ARMADO CON 4 VARILLAS DEL #3 (3/8\") Y ESTRIBOS DEL #2 A CADA 15 CMS., INCLUYE: ARMADO, COLADO, CURADO, VIBRADO, CIMBRA COMUN, DESCIMBRA, DESPERDICIOS, TRASLAPES, CRUCES DE VARILLAS CON ELEMENTOS TRANSVERSALES, ANDAMIOS, MANO DE OBRA, HERRAMIENTA Y ACARREO DE MATERIALES AL SITIO DE SU UTILIZACION, A CUALQUIER ALTURA.","ML ","7.9100",0,"CERO PESOS 00/100 M.N.",0,266365]
[192518,"ANCLAJE DE CASTILLO EN CIMENTACION 14 X 30 CMS., CONCRETO F'C=250 KG/CM2, ARMADO CON 4 VARILLAS DEL #3 (3/8\") Y ESTRIBOS DEL #2 A CADA 15 CMS., INCLUYE: ARMADO, COLADO, CURADO, VIBRADO, CIMBRA COMUN, DESCIMBRA, DESPERDICIOS, TRASLAPES, CRUCES DE VARILLAS CON ELEMENTOS TRANSVERSALES, ANDAMIOS, MANO DE OBRA, HERRAMIENTA Y ACARREO DE MATERIALES AL SITIO DE SU UTILIZACION, A CUALQUIER ALTURA.","ML ","13.7200",0,"CERO PESOS 00/100 M.N.",0,266366]
["E.04(200)","ESTRUCTURA                                        ",null,null,null,null,{"$f":"TEXT(SUM(G76:G83), \"$ #,##0.00 ;\")","v":"$ 0.00 "}]
[210222,"CIMBRA DE MADERA, ACABADO APARENTE, EN TRABES, INCLUYE: HABILITADO, CHAFLANES, CIMBRA, DESCIMBRA, DESPERDICIOS,  HERRAMIENTAS, PUNTALES, ANDAMIOS, LIMPIEZAS, MANO DE OBRA  Y ACARREO DE MATERIALES AL SITIO DE SU UTILIZACION, A CUALQUIER NIVEL.","M2 ","18.4200",0,"CERO PESOS 00/100 M.N.",0,266367]
[210322,"CIMBRA DE MADERA, ACABADO APARENTE, EN LOSAS, INCLUYE: HABILITADO, CHAFLANES, CIMBRA, DESCIMBRA, GOTEROS, HERRAMIENTAS, LIMPIEZAS, MANO DE OBRA  Y ACARREO DE MATERIALES AL SITIO DE SU UTILIZACION, A CUALQUIER NIVEL.","M2 ","74.7000",0,"CERO PESOS 00/100 M.N.",0,266368]
[213003,"SUMINISTRO, HABILITADO, ARMADO Y COLOCACION DE ACERO DE REFUERZO FY=4,200 KG/CM2 (G.E.), DE 3/8\" (# 3 ), EN ESTRUCTURA, INCLUYE: MATERIALES, HABILITADO,  DOBLECES,  SILLETAS, ALAMBRE, GANCHOS, ESCUADRAS, TRASLAPES, DESPERDICIOS HERRAMIENTAS, MANO DE OBRA Y ACARREO DE MATERIALES AL SITIO DE SU COLOCACION.","KG ","716.1000",0,"CERO PESOS 00/100 M.N.",0,266369]
[213004,"SUMINISTRO, HABILITADO, ARMADO Y COLOCACION DE ACERO DE REFUERZO FY=4,200 KG/CM2 (G.E.), DE 1/2\" (# 4 ), EN ESTRUCTURA, INCLUYE: MATERIALES, HABILITADO,  DOBLECES,  SILLETAS, ALAMBRE, GANCHOS, ESCUADRAS, TRASLAPES, DESPERDICIOS HERRAMIENTAS, MANO DE OBRA Y ACARREO DE MATERIALES AL SITIO DE SU COLOCACION.","KG ","140.5000",0,"CERO PESOS 00/100 M.N.",0,266370]
[213005,"SUMINISTRO, HABILITADO, ARMADO Y COLOCACION DE ACERO DE REFUERZO FY=4,200 KG/CM2 (G.E.), DE 5/8\" (# 5 ), EN ESTRUCTURA, INCLUYE: MATERIALES, HABILITADO,  DOBLECES,  SILLETAS, ALAMBRE, GANCHOS, ESCUADRAS, TRASLAPES, DESPERDICIOS HERRAMIENTAS, MANO DE OBRA Y ACARREO DE MATERIALES AL SITIO DE SU COLOCACION.","KG ","34.1500",0,"CERO PESOS 00/100 M.N.",0,266371]
[216432,"SUMINISTRO Y COLOCACION DE CONCRETO  HECHO EN OBRA, F'C=250 KG/CM2, T.M.A.= 3/4\", R. N., EN TRABES Y FALDONES, INCLUYE: CURADO, VIBRADO Y DESPERDICIO, A CUALQUIER NIVEL.","M3 ","1.6800",0,"CERO PESOS 00/100 M.N.",0,266372]
[216442,"SUMINISTRO Y COLOCACION DE CONCRETO  HECHO EN OBRA, F'C=250 KG/CM2, T.M.A.= 3/4\", R. N., EN LOSAS, INCLUYE: AFINE, ACABADO, CURADO, VIBRADO Y DESPERDICIO, A CUALQUIER NIVEL.","M3 ","7.6200",0,"CERO PESOS 00/100 M.N.",0,266373]
[322512,"ACABADO PULIDO Y/O APALILLADO FINO POR CUALQUIER MEDIO DE LOSA Y/O ELEMENTOS DE CONCRETO (GRADAS, PISOS, AZOTEAS Y/O ENTREPISOS DE CONCRETO), TERMINADO EN FORMA INTEGRAL, (SIN UTILIZAR PASTA),  INCLUYE: DESPERDICIOS, ACARREOS, REGLEADO, REMATES, JUNTAS FRIAS CON VOLTEADOR, HERRAMIENTAS Y MANO DE OBRA.","M2 ","76.1000",0,"CERO PESOS 00/100 M.N.",0,266375]
["E.05(310)","MUROS, CADENAS, CASTILLOS Y REPIZONES.            ",null,null,null,null,{"$f":"TEXT(SUM(G85:G97), \"$ #,##0.00 ;\")","v":"$ 0.00 "}]
[310170,"DALA DE CONCRETO F'C=250 KG/CM2, T.M.A.=3/4\", CON SECCION DE 14 X 15 CMS., ARMADA CON 4 VARILLAS DEL # 3 Y ESTRIBOS DEL NO. 2 @ 30 CMS., INCLUYE: ARMADO, COLADO, CURADO, VIBRADO, CIMBRA COMUN, DESCIMBRA, TRASLAPES, CRUCES DE VARILLAS CON ELEMENTOS TRANSVERSALES, DESPERDICIOS, MANO DE OBRA, HERRAMIENTA Y ACARREO DE MATERIALES AL SITIO DE SU UTILIZACION, A CUALQUIER ALTURA.","ML ","8.8000",0,"CERO PESOS 00/100 M.N.",0,266376]
[310172,"DALA DE CONCRETO F'C=250 KG/CM2, T.M.A.=3/4\", CON SECCION DE 14 X 15 CMS., ARMADA CON 4 VARILLAS DEL # 3 Y ESTRIBOS DEL NO. 2 @ 20 CMS., INCLUYE: ARMADO, COLADO, CURADO, VIBRADO, CIMBRA COMUN, DESCIMBRA, TRASLAPES, CRUCES DE VARILLAS CON ELEMENTOS TRANSVERSALES, DESPERDICIOS, MANO DE OBRA, HERRAMIENTA Y ACARREO DE MATERIALES AL SITIO DE SU UTILIZACION, A CUALQUIER ALTURA.","ML ","23.4600",0,"CERO PESOS 00/100 M.N.",0,266377]
[310178,"DALA DE CONCRETO F'C=250 KG/CM2, T.M.A.=3/4\", CON SECCION DE 14 X 20 CMS., ARMADA CON 4 VARILLAS DEL # 3 Y ESTRIBOS DEL NO. 2 @ 15 CMS., INCLUYE: ARMADO, COLADO, CURADO, VIBRADO, CIMBRA COMUN, DESCIMBRA, TRASLAPES, CRUCES DE VARILLAS CON ELEMENTOS TRANSVERSALES, DESPERDICIOS, MANO DE OBRA, HERRAMIENTA Y ACARREO DE MATERIALES AL SITIO DE SU UTILIZACION, A CUALQUIER ALTURA.","ML ","23.1000",0,"CERO PESOS 00/100 M.N.",0,266378]
[310220,"DALA DE CONCRETO F'C=250 KG/CM2, T.M.A.=3/4\", CON SECCION DE 14 X 20 CMS., ARMADA CON 4 VARILLAS DEL # 4 Y ESTRIBOS DEL NO. 2 @ 20 CMS., INCLUYE: ARMADO, COLADO, CURADO, VIBRADO, CIMBRA COMUN, DESCIMBRA, DESPERDICIOS, MANO DE OBRA, HERRAMIENTA Y ACARREO DE MATERIALES AL SITIO DE SU UTILIZACION, A CUALQUIER ALTURA.","ML ","23.4000",0,"CERO PESOS 00/100 M.N.",0,266379]
[310230,"DALA DE CONCRETO F'C=250 KG/CM2, T.M.A.=3/4\", CON SECCION DE 21 X 15 CMS., ARMADA CON 6 VARILLAS DEL # 3 Y UN ESTRIBO + UNA GRAPA DEL NO. 2 @ 25 CMS., INCLUYE: ARMADO, COLADO, CURADO, VIBRADO, CIMBRA COMUN, DESCIMBRA, TRASLAPES, CRUCES DE VARILLAS CON ELEMENTOS TRANSVERSALES, DESPERDICIOS, MANO DE OBRA, HERRAMIENTA Y ACARREO DE MATERIALES AL SITIO DE SU UTILIZACION, A CUALQUIER ALTURA.","ML ","7.4000",0,"CERO PESOS 00/100 M.N.",0,266380]
[310538,"DALA DE CONCRETO F'C=250 KG/CM2, T.M.A.=3/4\", CON SECCION DE 14 X 10 CMS., SIN ARMAR, INCLUYE: COLADO, CURADO, VIBRADO, CIMBRA APARENTE, DESCIMBRA, DESPERDICIOS, MANO DE OBRA, HERRAMIENTA Y ACARREO DE MATERIALES AL SITIO DE SU UTILIZACION, A CUALQUIER ALTURA.","ML ","32.2600",0,"CERO PESOS 00/100 M.N.",0,266381]
[310540,"DALA DE CONCRETO F'C=250 KG/CM2, T.M.A.=3/4\", CON SECCION DE 21 X 10 CMS., SIN ARMAR, INCLUYE: COLADO, CURADO, VIBRADO, CIMBRA APARENTE, DESCIMBRA, DESPERDICIOS, MANO DE OBRA, HERRAMIENTA Y ACARREO DE MATERIALES AL SITIO DE SU UTILIZACION, A CUALQUIER ALTURA.","ML ","8.8000",0,"CERO PESOS 00/100 M.N.",0,266382]
[312212,"CASTILLO DE CONCRETO F'C=250 KG/CM2, T.M.A.=3/4\", CON SECCION DE 14 X 15 CMS., ARMADA CON 4 VARILLAS DEL # 3 Y ESTRIBOS DEL NO. 2 @ 15 CMS., INCLUYE: ARMADO, COLADO, CURADO, VIBRADO, CIMBRA COMUN, DESCIMBRA, DESPERDICIOS, TRASLAPES, CRUCES DE VARILLAS CON ELEMENTOS TRANSVERSALES, ANDAMIOS, MANO DE OBRA, HERRAMIENTA Y ACARREO DE MATERIALES AL SITIO DE SU UTILIZACION, A CUALQUIER ALTURA.","ML ","9.9000",0,"CERO PESOS 00/100 M.N.",0,266383]
[312256,"CASTILLO DE CONCRETO F'C=250 KG/CM2, T.M.A.=3/4\", CON SECCION DE 14 X 20 CMS., ARMADA CON 4 VARILLAS DEL # 3 Y ESTRIBOS DEL NO. 2 @ 15 CMS., INCLUYE: ARMADO, COLADO, CURADO, VIBRADO, CIMBRA COMUN, DESCIMBRA, TRASLAPES, CRUCES DE VARILLAS CON ELEMENTOS TRANSVERSALES, DESPERDICIOS, MANO DE OBRA, HERRAMIENTA Y ACARREO DE MATERIALES AL SITIO DE SU UTILIZACION, A CUALQUIER ALTURA.","ML ","12.4500",0,"CERO PESOS 00/100 M.N.",0,266384]
[312257,"CASTILLO DE CONCRETO F'C=250 KG/CM2, T.M.A.=3/4\", CON SECCION DE 14 X 21 CMS., ARMADA CON 4 VARILLAS DEL # 3 Y ESTRIBOS DEL NO. 2 @ 15 CMS., INCLUYE: ARMADO, COLADO, CURADO, VIBRADO, CIMBRA COMUN, DESCIMBRA, TRASLAPES, CRUCES DE VARILLAS CON ELEMENTOS TRANSVERSALES, DESPERDICIOS, MANO DE OBRA, HERRAMIENTA Y ACARREO DE MATERIALES AL SITIO DE SU UTILIZACION, A CUALQUIER ALTURA.","ML ","27.1000",0,"CERO PESOS 00/100 M.N.",0,266385]
[314032,"MURO DE TABIQUE DE LAMA, DE 14 CMS. DE ESPESOR PROMEDIO, A SOGA, CON TABIQUE DE LAMA 7 X 14 X 28 CMS., ACABADO COMUN, ASENTADO CON MORTERO CEMENTO-ARENA EN PROPORCION 1:3, EN CUALQUIER NIVEL, INCLUYE: TRAZO, NIVELACION, PLOMEO, ANDAMIOS, DESPERDICIOS, MANO DE OBRA, LIMPIEZA Y ACARREO DE MATERIALES AL SITIO DE SU UTILIZACION.","M2 ","70.4500",0,"CERO PESOS 00/100 M.N.",0,266386]
[314052,"MURO DE TABIQUE DE LAMA, DE 22 CMS. DE ESPESOR PROMEDIO, COMBINADO, CON TABIQUE DE LAMA 7 X 14 X 28 CMS., ACABADO COMUN, ASENTADO CON MORTERO CEMENTO-ARENA DE RIO EN PROPORCION 1:3, EN CUALQUIER NIVEL, INCLUYE: TRAZO, NIVELACION, PLOMEO, DESPERDICIOS, HERRAMIENTAS, ANDAMIOS, LIMPIEZAS, MANO DE OBRA Y ACARREO DE MATERIALES AL SITIO DE SU UTILIZACION. A CUALQUIE ALTURA.","M2 ","13.5000",0,"CERO PESOS 00/100 M.N.",0,266387]
[344012,"IMPERMEABILIZACION DE CADENAS DE DESPLANTE EN MUROS, CON UNA CAPA DE EMULTEX (O SIMILAR), DOS CAPAS DE BITUMEX (O SIMILAR) Y UNA CAPA DE CRISTAFLEX (O SIMILAR).","ML ","43.2600",0,"CERO PESOS 00/100 M.N.",0,266388]
["E.06(319)","ENTREPISOS, CUBIERTA Y ACABADOS DE AZOTEA         ",null,null,null,null,{"$f":"TEXT(SUM(G99:G99), \"$ #,##0.00 ;\")","v":"$ 0.00 "}]
[344125,"IMPERMEABILIZACION DE MUROS O LOSAS, A BASE DE MEMBRANA PREFABRICADA, MCA. IMPERQUIMIA, UNIPLAS AERO PLUS SBS, ALTO DESEMPEÑO CON VENTILACION ANTIABOLSAMIENTOS, FABRICADA A BASE DE ASFALTOS MODIFICADOS CON POLIMEROS SINTETICOS SBS (ESTIRENO BUTADIENO ESTIRENO) REFORZADA CON MALLA POLIESTER DE ALTA RESISTENCIA, ACABADO APARENTE A BASE DE GRAVILLA ESMALTADA A FUEGO, 4.5 MM  DE ESPESOR TOTAL, COLOR ROJO TERRACOTA, GARANTIA POR ESCRITO DE 10 AÑOS, POR LA EMPRESA CONTRATISTA., INCLUYE: LIMPIEZA Y PREPARACION DE LA SUPERFICIE, APLICACION DE PRIMER IMPERCOAT PRIMARIO SL, PARA ANCLAJE Y TAPAPORO DE LA SUPERFICIE, SELLADO DE FISURAS Y GRIETAS A BASE DE CEMENTO PLASTICO BITUMINOSO IMPERCOAT CEMENTO SBS, SUMINISTRO Y COLOCACION DE MEMBRANA POR MEDIO DE TERMOFUSION A BASE DE FUEGO DE SOPLETE DE GAS BUTANO, HACIENDO TRASLAPES MINIMOS DE 0.10 MTS. EN AMBOS SENTIDOS, SELLADO DE ORILLAS, REMATES Y TRASLAPES, MATERIALES MENORES Y DE CONSUMO, CORTES, DESPERDICIOS, LIMPIEZA GENERAL, HERRAMIENTAS, MANO DE OBRA ESPECIALIZADA Y ACARREOS AL SITIO DE SU COLOCACION.","M2 ","76.1000",0,"CERO PESOS 00/100 M.N.",0,266399]
["E.07(355)","RECUBRIMIENTOS Y ACABADOS                         ",null,null,null,null,{"$f":"TEXT(SUM(G101:G104), \"$ #,##0.00 ;\")","v":"$ 0.00 "}]
[355022,"APLANADO DE MUROS Y/O TECHOS CON MORTERO CEMENTO-CAL-ARENA DE RIO EN PROP. 1:2:6 DE 2 CM. DE ESPESOR PROMEDIO, A PLOMO Y REGLA, ACABADO APALILLADO FINO, INCLUYE: MATERIALES, DESPERDICIOS, ANDAMIOS, HERRAMIENTAS, PLOMEO, NIVELACION, REMATES, LIMPIEZA DEL AREA DE TRABAJO Y ACARREO DE MATERIALES AL SITIO DE SU UTILIZACION. A CUALQUIER NIVEL.\n","M2 ","219.0000",0,"CERO PESOS 00/100 M.N.",0,266400]
[357322,"BOQUILLAS EN PUERTAS Y VENTANAS, CON MORTERO CEMENTO-CAL-ARENA 1:2:6, INCLUYE: ANDAMIOS Y ACARREO DE MATERIALES AL SITIO DE SU UTILIZACION.","ML ","34.9400",0,"CERO PESOS 00/100 M.N.",0,266401]
[357352,"FILETES Y BOLEADOS, HECHOS CON MORTERO CEMENTO-CAL-ARENA EN PROPORCION 1:2:6, INCLUYE: DESPERDICIOS, ANDAMIOS Y ACARREO DE MATERIALES AL SITIO DE SU UTILIZACION, A CUALQUIER NIVEL.","ML ","44.4000",0,"CERO PESOS 00/100 M.N.",0,266402]
[358016,"SUMINISTRO Y COLOCACION DE LOSETA CERAMICA PARA MURO ( AZULEJO ), CON RECUBRIMIENTO ESMALTADO, DE 25 X 40 CM., MCA.  INTERCERAMIC, LINEA COSTA DEL SOL, CUALQUIER COLOR, DE PRIMERA CALIDAD, ASENTADO CON PEGAZULEJO Y JUNTEDO CON JUNTEADOR DE COLOR,  JUNTAS A HUESO, INCLUYE: TRAZO, CORTE, REMATES, ESCUADRE, DESPERDICIOS, DESPATINADO, EMBOQUILLADOS, CERTIFICADO DE CALIDAD, HERRAMIENTAS, MATERIALES,  MANO DE OBRA, LIMPIEZA Y ACARREO DE MATERIALES AL SITIO DE SU UTILIZACION, A CUALQUIER NIVEL.","M2 ","97.1000",0,"CERO PESOS 00/100 M.N.",0,266403]
["E.08(372)","PISOS                                             ",null,null,null,null,{"$f":"TEXT(SUM(G106:G113), \"$ #,##0.00 ;\")","v":"$ 0.00 "}]
[344511,"SUMINISTRO Y COLOCACION DE JUNTA DE CONTRACCION ELASTOMERICA. EN PISOS CON UNA SECCION TRANSVERSAL DE 6 X 10 MM, A BASE DE SILICON DE COLOR PARA JUNTAS DE DILATACION, INCLUYE: LIMPIEZA DEL AREA A TRATAR, DESPERDICIOS Y ACARREO DEL MATERIAL AL SITIO DE SU COLOCACION.","ML ","5.7200",0,"CERO PESOS 00/100 M.N.",0,266404]
[360565,"SUMINISTRO Y COLOCACION DE MALLA ELECTROSOLDADA 6X6-10/10 COMO REFUERZO EN PISOS DE CONCRETO, INCLUYE: DESPERDICIOS, TRASLAPES, HERRAMIENTA Y ACARREO DEL MATERIAL AL SITIO DE SU COLOCACION.","M2 ","54.9300",0,"CERO PESOS 00/100 M.N.",0,266405]
[372242,"FIRME DE CONCRETO F´C= 150 KG/CM2 TMA= 3/4\",  DE 8 CM DE ESPESOR, ACABADO APALILLADO. INCLUYE: TRAZO, NIVELACION, AFINE Y COMPACTACION DEL TERRENO, AGUA, MATERIALES, EXTENDIDO, REGLEADO, CURADO, DESPERDICIOS, HERRAMIENTAS, LIMPIEZA, MANO DE OBRA Y ACARREO DEL MATERIAL AL SITIO DE SU UTILIZACION","M2 ","44.6300",0,"CERO PESOS 00/100 M.N.",0,266406]
[373022,"PISO DE CONCRETO F'C=150 KG/CM², T.M.A. 3/4\", DE 0.10 M. DE ESPESOR, COLADO EN CUADROS NO MAYORES DE 3.00 ML POR LADO, INCLUYE: TRAZO, NIVELACION, AFINE Y COMPACTACION DEL TERRENO, AGUA, DESPERDICIOS, ACARREOS, REGLEADO, ACABADO INTEGRAL RAYADO CON BROCHA DE PELO (SIN UTILIZACION DE PASTA), CIMBRA EN FRONTERAS, DESCIMBRA, COLADO, CURADO, REMATES, ESCALONADO, MUESTREADO, JUNTAS FRIAS CON VOLTEADOR, HERRAMIENTAS Y MANO DE OBRA.","M2 ","10.3000",0,"CERO PESOS 00/100 M.N.",0,266407]
[373546,"CEJA DE CONCRETO F'C=250 KG/CM2, TMA=3/4\" DE 15 X 10 CM DE SECCION, ARMADA CON 1 VARILLA #3 (3/8\") Y ESTRIBOS DE 1/4\" @ 25.0 CM, EN CUALQUIER NIVEL. INCLUYE: CIMBRA APARENTE, DESCIMBRA, COLADO, VIBRADO, CURADO, PERFILADO, CHAFLANES, GOTERO, LIMPIEZA, HERRAMIENTAS, MATERIALES, DESPERDICIOS Y MANO DE OBRA.","ML ","29.9200",0,"CERO PESOS 00/100 M.N.",0,266408]
[373766,"FORJADO DE NARIZ DE REMATE EN PISO DE  BANQUETAS, CON 10.0  X  10.0 CM. DE SECCION, INCLUYE SOLO: CIMBRA APARENTE, DESCIMBRA, GOTERO, FORJADO, CHAFLANES, PERFILADO, DESPERDICIOS, HERRAMIENTAS, Y MANO DE OBRA. (NO INCLUYE CONCRETO).","ML ","11.2000",0,"CERO PESOS 00/100 M.N.",0,266409]
[374509,"GUARNICION O MACHUELO DE CONCRETO SIMPLE F'C=150 KG/CM2 CON SECCION DE 15 X 35 CMS., CON CIMBRA APARENTE, INCLUYE: TRAZO, EXCAVACION, CONFORMACION Y COMPACTACION DEL TERRENO NATURAL CON HERRAMIENTA MANUAL, INCORPORACION DE HUMEDAD OPTIMA, RETIRO DEL MATERIAL PRODUCTO DE LA EXCAVACION, CIMBRA APARENTE Y DESCIMBRA, COLADO, VIBRADO, CURADO, SEÑALAMIENTO PREVENTIVO, MATERIALES, HERRAMIENTAS, MANO DE OBRA Y ACARREO DE MATERIALES AL SITIO DE SU UTILIZACION.","ML ","10.5000",0,"CERO PESOS 00/100 M.N.",0,266410]
[962162,"SUMINISTRO Y COLOCACION DE PISO DE  LOSETA CERAMICA DE 33 X 33 CM., MCA. INTERCERAMIC DE PRIMERA, LINEA NIZA, DE CUALQUIER COLOR, GRADO DE DUREZA (PEI) \"IV\" , ASENTADO CON PEGAPISO Y JUNTEDO CON JUNTEADOR DE COLOR,  JUNTAS DE 4 MM. DE ANCHO, INCLUYE: TRAZO, CORTE, REMATES, ESCUADRE, DESPERDICIOS, DESPATINADO, EMBOQUILLADOS, CERTIFICADO DE CALIDAD, HERRAMIENTAS, MATERIALES,  MANO DE OBRA, LIMPIEZA  Y ACARREO DE MATERIALES AL SITIO DE SU UTILIZACION, A CUALQUIER ALTURA.","M2 ","44.6300",0,"CERO PESOS 00/100 M.N.",0,266411]
["E.09(382)","ELEMENTOS COMPLEMENTARIOS DE ALBAÑILERIA          ",null,null,null,null,{"$f":"TEXT(SUM(G115:G117), \"$ #,##0.00 ;\")","v":"$ 0.00 "}]
[346032,"BASE PARA 3 TINACOS DE 1,100 LTS C/U, CON MURO DE LADRILLO DE LAMA DE 5.5 X 11.0 X 22.0 CM, A SOGA, ASENTADO CON MORTERO CEM-ARE 1:3, LOSA, CADENAS Y CASTILLOS DE CONCRETO ARMADO F'C=250 KG/CM2,  APLANADO (EXTERIOR E INTERIOR) CON MORTERO CEM-CAL-ARE 1:2:6, INCLUYE: CIMBRA, CONCRETO F'C=250 KG/CM2, ACERO DE REFUERZO, ACARREO DEL MATERIAL AL SITIO DE SU UTILIZACION, EN CUALQUIER NIVEL.","PZA","1.0000",0,"CERO PESOS 00/100 M.N.",0,266412]
[382017,"LOSA DE CONCRETO FC=200 KG/CM2 DE 10.0 CMS. DE ESPESOR Y 60.0 CMS. DE ANCHO, PARA RECIBIR LAVABO U OVALIN, ARMADA CON VARILLA #3 @ 30.0 CMS. EN AMBOS SENTIDOS, ACABADO APALILLADO, INCLUYE: TRAZO, CIMBRA COMUN Y DESCIMBRADO, RECUBRIMIENTO DE MARMOL TRAVERTINO DE 2 CM. DE ESPESOR, ORILLAS REDONDEADAS, DESPERDICIOS, NIVELACION, CORTES, ABRILLANTADO, AJUSTES, REMATES, ZOCLO 10.0 CMS, FALDONES 10.0 CMS., TALADROS PARA LLAVES Y OVALINES, HERRAMIENTAS, MANO DE OBRA, LIMPIEZA Y ACARREO DE MATERIAL AL SITIO DE SU UTILIZACION, A CUALQUIER NIVEL .","ML ","4.8000",0,"CERO PESOS 00/100 M.N.",0,266413]
[383022,"FORJADO DE BASE PARA VERTEDERO DE 0.40 X 0.40 X 0.40 M. MEDIDAS INTERIORES, FORJADA CON LADRILLO DE LAMA DE 14 CM. DE ESPESOR ASENTADO Y APLANADO CON MORTERO CEMENTO-ARENA DE RIO EN PROPORCION 1:3, RECUBIERTA CON AZULEJO DE 1RA. EN AREAS  EXTERIORES, INCLUYE: TRAZO, NIVELACION, PLOMEO, EMBOQUILLADO, ACARREO DE MATERIALES AL SITIO DE SU UTILIZACION, MANO DE OBRA Y HERRAMIENTA.","PZA","2.0000",0,"CERO PESOS 00/100 M.N.",0,266414]
["E.10(393)","PINTURA                                           ",null,null,null,null,{"$f":"TEXT(SUM(G119:G122), \"$ #,##0.00 ;\")","v":"$ 0.00 "}]
[393010,"PINTURA VINIL-ACRÍLICA A BASE DE AGUA ACABADO SEMIMATE  LAVABLE, PARA INTERIORES Y EXTERIORES QUE NO DESPRENDA VAPORES TÓXICOS NI OLORES DESAGRADABLES, CON LAS SIGUIENTES CARACTERÍSTICAS ( SÓLIDOS POR PESO 46-52%, SÓLIDOS POR VOLUMEN 30-36%, VISCOSIDAD DE 100-130 UK A 25°C, DENSIDAD > O = 1.2 TON/M3., LAVABILIDAD > O = 4,000 CICLOS, TIEMPO DE SECADO AL TACTO, 30-40 MIN., TIEMPO DE SECADO DURO < O = 8 HRS., CICLO DE CURADO DE 7 DIAS, PH 6-8, RENDIMIENTO EN SUP. LISA 8-10 M2/LT., FINEZA DE MOLIDO (HEGMAN) 3-7 UH.)  EN CADENAS DE DESPLANTE, A UNA CARA, TRABAJO TERMINADO, A DOS MANOS, INCLUYE: MATERIALES MENORES Y DE CONSUMO, PREPARACION DE LA SUPERFICIE, SELLADO DE LA SUPERFICIE, HERRAMIENTAS, LIMPIEZA, MANO DE OBRA Y  ACARREOS DE MATERIALES AL SITIO DE SU UTILIZACION.","ML ","35.0000",0,"CERO PESOS 00/100 M.N.",0,266415]
[393022,"PINTURA VINIL-ACRÍLICA A BASE DE AGUA ACABADO SEMIMATE  LAVABLE, PARA INTERIORES Y EXTERIORES QUE NO DESPRENDA VAPORES TÓXICOS NI OLORES DESAGRADABLES, CON LAS SIGUIENTES CARACTERÍSTICAS ( SÓLIDOS POR PESO 46-52%, SÓLIDOS POR VOLUMEN 30-36%, VISCOSIDAD DE 100-130 UK A 25°C, DENSIDAD > O = 1.2 TON/M3., LAVABILIDAD > O = 4,000 CICLOS, TIEMPO DE SECADO AL TACTO, 30-40 MIN., TIEMPO DE SECADO DURO < O = 8 HRS., CICLO DE CURADO DE 7 DIAS, PH 6-8, RENDIMIENTO EN SUP. LISA 8-10 M2/LT., FINEZA DE MOLIDO (HEGMAN) 3-7 UH.)  EN MUROS APLANADOS DE MEZCLA APALILLADO O PULIDO, TRABAJO TERMINADO, A DOS MANOS, INCLUYE: MATERIALES MENORES Y DE CONSUMO, ANDAMIOS, PREPARACION DE LA SUPERFICIE, SELLADO DE LA SUPERFICIE, HERRAMIENTAS, LIMPIEZA, MANO DE OBRA Y  ACARREOS DE MATERIALES AL SITIO DE SU UTILIZACIÓN.","M2 ","126.4000",0,"CERO PESOS 00/100 M.N.",0,266416]
[393052,"PINTURA VINIL-ACRÍLICA A BASE DE AGUA ACABADO SEMIMATE  LAVABLE, PARA INTERIORES Y EXTERIORES QUE NO DESPRENDA VAPORES TÓXICOS NI OLORES DESAGRADABLES, CON LAS SIGUIENTES CARACTERÍSTICAS ( SÓLIDOS POR PESO 46-52%, SÓLIDOS POR VOLUMEN 30-36%, VISCOSIDAD DE 100-130 UK A 25°C, DENSIDAD > O = 1.2 TON/M3., LAVABILIDAD > O = 4,000 CICLOS, TIEMPO DE SECADO AL TACTO, 30-40 MIN., TIEMPO DE SECADO DURO < O = 8 HRS., CICLO DE CURADO DE 7 DIAS, PH 6-8, RENDIMIENTO EN SUP. LISA 8-10 M2/LT., FINEZA DE MOLIDO (HEGMAN) 3-7 UH.)  EN LOSAS Y ELEMENTOS DE CONCRETO, TRABAJO TERMINADO, A DOS MANOS, INCLUYE: MATERIALES MENORES Y DE CONSUMO, ANDAMIOS, PREPARACION DE LA SUPERFICIE DE CONCRETO, SELLADO DE LA SUPERFICIE, HERRAMIENTAS, LIMPIEZA, MANO DE OBRA Y  EQUIPO DE SEGURIDAD. A CUALQUIER ALTURA.","M2 ","90.3000",0,"CERO PESOS 00/100 M.N.",0,266418]
[393142,"PINTURA DE ESMALTE ALQUIDALICO ANTICORROSIVO, ACABADO BRILLANTE, PARA INTERIORES Y EXTERIORES QUE NO DESPRENDA VAPORES TÓXICOS NI OLORES DESAGRADABLES, CON LAS SIGUIENTES CARACTERÍSTICAS ( SÓLIDOS POR PESO 49-60%, SÓLIDOS POR VOLUMEN 40-46%, VISCOSIDAD DE 110-160 UK A 25°C, DENSIDAD 0.9-1.2 TON/M3., BRILLO A 60°C, 90%, TIEMPO DE SECADO AL TACTO, < O = 6 HRS., TIEMPO DE SECADO DURO < O = 24 HRS., ADHERENCIA 100%, RENDIMIENTO EN SUP. LISA 8-10 M2/LT., DILUCIÓN MÁXIMA (AGUARRÁS, THINER), 15 %,  EN HERRERIA ABIERTA DE PERFILES ESTRUCTURALES (PROTECCIONES), MEDIDA POR UN SOLO LADO, TRABAJO TERMINADO, A DOS MANOS, INCLUYE: MATERIALES MENORES Y DE CONSUMO, ANDAMIOS, PREPARACION DE LA SUPERFICIE, HERRAMIENTAS, LIMPIEZA, MANO DE OBRA Y  EQUIPO DE SEGURIDAD. A CUALQUIER NIVEL. (LA PINTURA ES POR AMBOS LADOS DE LA HERRERIA, PERO PARA SU PAGO ES MEDIDA SOLO POR 1 SOLO LADO).","M2 ","3.1500",0,"CERO PESOS 00/100 M.N.",0,266419]
["E.11(396)","LIMPIEZA                                          ",null,null,null,null,{"$f":"TEXT(SUM(G124:G128), \"$ #,##0.00 ;\")","v":"$ 0.00 "}]
[396012,"LIMPIEZA DE PISOS DE CONCRETO CON AGUA Y ACIDO MURIATICO AL 10%.","M2 ","10.3000",0,"CERO PESOS 00/100 M.N.",0,266421]
[396022,"LIMPIEZA EN PISO DE CERAMICA, CON AGUA Y JABON.","M2 ","44.6300",0,"CERO PESOS 00/100 M.N.",0,266422]
[396032,"LIMPIEZA DE RECUBRIMIENTOS VIDRIADOS EN MUROS, CON JABON, AGUA Y ACIDO MURIATICO AL 10 %.","M2 ","97.1000",0,"CERO PESOS 00/100 M.N.",0,266423]
[396042,"LIMPIEZA DE VIDRIOS CON AGUA Y JABON, 2 CARAS.","M2 ","3.1500",0,"CERO PESOS 00/100 M.N.",0,266424]
[396222,"LIMPIEZA DE MUEBLES DE BAÑO, CON AGUA Y JABON.","PZA","21.0000",0,"CERO PESOS 00/100 M.N.",0,266425]
["E.12(410)","CANCELERIA, HERRERIA, ALUMINIO, VIDRIOS Y CHAPAS  ",null,null,null,null,{"$f":"TEXT(SUM(G130:G140), \"$ #,##0.00 ;\")","v":"$ 0.00 "}]
[412004,"SUMINISTRO Y FABRICACION DE PROTECCIONES PARA VENTANERIA A BASE DE HERRERIA ESTRUCTURAL CON PERFIL CUADRADO Y/O REDONDO 1/2\" Y SOLERA DE 1/4\" X 1 1/2\", INCLUYE: CORTES, SOLDADURA, TALADROS, PINTURA DE TALLER,  AJUSTES Y DETALLES REALIZADOS EN OBRA DE ACUERDO A LO CONSTRUIDO,  ACARREOS, MATERIALES, DESPERDICIOS, HERRAMIENTAS Y EQUIPO NECESARIAS, MANO DE OBRA CALIFICADA Y TODO LO NECESARIO PARA SU CORRECTA EJECUCION.","KG ","38.3000",0,"CERO PESOS 00/100 M.N.",0,266426]
[412402,"SUMINISTRO Y COLOCACION  DE GRAPA PARA ESCALERA MARINA EN FORMA DE \"C\" CON VARILLA CORRUGADA DE 1/2\" DE DIAMETRO, Y 100 CM. DE DESARROLLO,  ANCLADA AL MURO, INCLUYE: CORTE, HABILITADO, ANCLOJE,  PINTURA EPOXICA, MATERIALES, DESPERDICIOS,  HERRAMIENTAS Y MANO DE OBRA.","PZA","10.0000",0,"CERO PESOS 00/100 M.N.",0,266427]
[412852,"COLOCACION DE HERRERIA TUBULAR Y/O ESTRUCTURAL SOLDADA Y/O ATORNILLADA A ESTRUCTURA Y REPISON EN CUALQUIER NIVEL, INCLUYE: PLOMEO, NIVELADO, AJUSTES Y ACARREO DE MATERIALES AL SITIO DE SU UTILIZACION","M2 ","3.1500",0,"CERO PESOS 00/100 M.N.",0,266428]
[420022,"SUMINISTRO, HABILITADO Y COLOCACION DE CANCELERIA FABRICADA  EN ALUMINIO ANODIZADO NATURAL CON PERFILES COMERCIALES DE 2\" X 1.25\",  MCA. CUPRUM ,  LINEA PANORAMA O SIMILAR, INCLUYE: TRAZO, CORTES, AJUSTES, MATERIALES, CORREDERAS, JALADERAS, OPERADORES, REPISON, SELLADO PERIMETRAL, SILICON, VINIL, HERRAJES, ELEMENTOS DE FIJACION, MATERIALES MENORES Y DE CONSUMO, DESPERDICIOS, HERRAMIENTAS, MANO DE OBRA ESPECIALIZADA, LIMPIEZA, FLETES, EQUIPO Y ACARREO DE MATERIALES AL SITIO DE SU COLOCACION, A CUALQUIER NIVEL.","M2 ","3.1500",0,"CERO PESOS 00/100 M.N.",0,266429]
[420075,"SUMINISTRO Y COLOCACION DE PUERTA Y/O MAMPARA TIPO TAMBOR, MCA. SANILOCK O SIMILAR,  MODELO ESTANDAR, FABRICADO A BASE DE BASTIDOR  DE PERFIL TUBULAR DE ACERO GALVANIZADO DE 1\" X 1\", EN CAL 20 Y LAMINAS DE ACERO CON ACABADO ESMALTADO ANTIGRAFITI EN CUALQUIER  COLOR, EN AMBAS CARAS CON MODULACION DE ACUERDO A GUIAS MECANICAS, CUBRACANTOS DE LAMINA DE ACERO INOXIDABLE TIPO 304, CAL 24., INCLUYE: HERRAJES, PASADORES, BISAGRAS, TOPES, JALADERAS, CUBRECANTOS, DESPERDICIOS, AJUSTES, RELLENO INTERIOR CON POLIESTIRENO EXPANDIDO DE 1\" DE ESPESOR, MATERIALES DE FIJACION, MANO DE OBRA ESPECIALIZADA, HERRAMIENTAS, MANO DE OBRA, LIMPIEZA Y ACARREO DE MATERIALES AL SITIO DE SU UTILIZACION. (AREA EFECTIVA DE LA MAMPARA)\n","M2 ","34.7000",0,"CERO PESOS 00/100 M.N.",0,266430]
[420077,"SUMINISTRO Y COLOCACION DE REPISA-TAPON, TIPO MAMPARA, DE 25 CM DE ANCHO, MCA. SANILOCK O SIMILAR,  MODELO ESTANDAR, FABRICADO A BASE DE BASTIDOR  DE PERFIL TUBULAR DE ACERO GALVANIZADO DE 1\" X 1\", EN CAL 20 Y LAMINAS DE ACERO CON ACABADO ESMALTADO ANTIGRAFITI EN CUALQUIER  COLOR, EN AMBAS CARAS, CUBRACANTOS DE LAMINA DE ACERO INOXIDABLE TIPO 304, CAL 24., INCLUYE: INCLUYE: ORIFICIO CON CUBRECANTO, HERRAJES, DESPERDICIOS, AJUSTES, RELLENO INTERIOR CON POLIESTIRENO EXPANDIDO DE 1\" DE ESPESOR, MATERIALES DE FIJACION, MANO DE OBRA ESPECIALIZADA, HERRAMIENTAS, MANO DE OBRA, LIMPIEZA Y ACARREO DE MATERIALES AL SITIO DE SU UTILIZACION.\n","ML ","10.6000",0,"CERO PESOS 00/100 M.N.",0,266431]
[422020,"SUMINISTRO Y COLOCACION DE PUERTA PREFABRICADA, CON MEDIDAS GENERALES DE 1.20 X 2.10 MTS.,  MCA. PORCELTECH O SIMILAR EN GARANTIA Y CALIDAD. MOD. BETA, TIPO TAMBOR DE 36 MM. DE ESPESOR, FABRICADA CON BASTIDOR DE PERFIL TUBULAR  GALVANIZADO DE 1 1/4\" , NUCLEO RELLENO CON PANEL HONEY COMB DE 1 3/8\" DE ESPESOR Y DOBLE CARA (INTERIOR-EXTERIOR) DE  LAMINA DE ACERO PORCELANIZADO CAL. 24,  EN COLOR INDICADO POR LA SUPERVISION Y CUBRECANTOS DE ALUMINIO ANODIZADO NATURAL , MARCO Y ANTEPECHO DE HERRERIA TUBULAR DE PERFILES COMERCIALES DE 3\" X 1 1/2\" CAL 14., TOPE DE ANGULO DE 3/4\" X 1/8\", INCLUYE: MARCO, HERRAJES, BISAGRAS, NIVELACION, PLOMEO, ELEMENTOS DE FIJACION, MATERIALES MENORES Y DE CONSUMO, SELLADO PERIMETRAL, HERRAMIENTAS, LIMPIZA, MANO DE OBRA, FLETES Y ACARREOS DE MATERIALES AL SITIO DE SU COLOCACION, EN CUALQUIER NIVEL.","PZA","2.0000",0,"CERO PESOS 00/100 M.N.",0,266432]
[424094,"SUMINISTRO Y COLOCACION DE CERRADURA TIPO EUROPEO PARA PUERTA EXTERIOR, MCA. JAKO, MOD. KIT9001ENT, FABRICADA EN ACERO INOXIDABLE CON ACABADO SATINADO, DOBLE MANIJA DE PERFIL TUBULAR REDONDO Y CILINDRO LLAVE-MARIPOSA, INCLUYE: TRAZO, TALADROS, ELEMENTOS DE FIJACION, HERRAMIENTAS, CILINDRO, CHAPETÓN, LLAVES, LIMPIEZA,  MANO DE OBRA Y  ACARREO DE MATERIAL AL SITIO DE SU UTILIZACION.","PZA","2.0000",0,"CERO PESOS 00/100 M.N.",0,266433]
[424322,"SUMINISTRO Y COLOCACION DE TOPES DE PISO PARA PUERTA. INC.: ACARREO DE MATERIAL AL SITIO DE SU UTILIZACION, A CUALQUIER NIVEL.","PZA","2.0000",0,"CERO PESOS 00/100 M.N.",0,266434]
[426010,"SUMINISTRO Y COLOCACION DE CRISTAL FLOTADO DE 6 MM. DE ESPESOR,  ASENTADO CON SILICON, INCLUYE: CORTES, DESPERDICIOS Y ACARREO DE MATERIALES AL SITIO DE SU UTILIZACION A CUALQUIER NIVEL.","M2 ","3.1500",0,"CERO PESOS 00/100 M.N.",0,266435]
[426525,"SUMINISTRO Y COLOCACION DE ESPEJO DE CRISTAL FLOTADO DE 6 MM. CON MARCO DE ALUMINIO ANODIZADO NATURAL DE 1 1/2\", INCLUYE: MATERIALES MENORES Y DE CONSUMO,  ELEMENTOS DE FIJACION, MARCO DE ALUMINIO, VINILO, PIJAS, HERRAMIENTAS, LIMPIEZA Y MANO DE OBRA ESPECIALIZADA.","M2 ","4.5600",0,"CERO PESOS 00/100 M.N.",0,266436]
["E.13(510)","INSTALACION ELECTRICA EN EDIFICIO                 ",null,null,null,null,{"$f":"TEXT(SUM(G142:G150), \"$ #,##0.00 ;\")","v":"$ 0.00 "}]
[514034,"SALIDA ELECTRICA DE CENTRO AISLADA OCULTA, CON TUBERIA Y CONEXIONES CONDUIT DE PVC. PESADO  DE AJUSTE DE 13 Y 19 MM. DE DIAMETRO, CABLE VINANEL THW-LS 600 V. A 75° C, 90° C, MARCA CONDUCTORES MONTERREY, (VIAKON-PROTOCOLIZADO), CABLE VINANEL 21 THW-LS 600 V. A 75° C, 90° C, MARCA CONDUMEX (CONDUMEX PROTOCOLIZADO).  CALIBRE 12 EN FASES Y 12 EN TIERRA FISICA, CAJAS DE REGISTRO  CUADRADAS, CHALUPAS Y TAPAS DE  PVC REFORZADO., INCLUYE: TRAZO, RANURAS, MATERIALES MENORES, HERRAMIENTA, MANO DE OBRA ESPECIALIZADA , CONEXIONES, LIMPIEZA DEL AREA DE TRABAJO, PRUEBAS, DESPERDICIOS Y ACARREO DEL MATERIAL AL SITIO DE SU COLOCACION, EN CUALQUIER NIVEL.","SAL","7.0000",0,"CERO PESOS 00/100 M.N.",0,266438]
[522033,"SALIDA ELECTRICA PARA  APAGADOR SENCILLO, OCULTA, CON TUBERIA Y CONEXIONES CONDUIT DE PVC TIPO PESADO DE 13 Y 19 MM. DE DIAMETRO, CABLE VINANEL THW-LS 600 V. A 75° C, 90° C, MARCA CONDUCTORES MONTERREY, (VIAKON-PROTOCOLIZADO), CABLE VINANEL 21 THW-LS 600 V. A 75° C, 90° C, MARCA CONDUMEX (CONDUMEX PROTOCOLIZADO). CALIBRE 12, CAJAS CUADRADAS, CHALUPAS Y TAPAS DE PVC, APAGADOR QUINZIÑO, TAPA DE ALUMINIO, INCLUYE: RANURAS, MATERIALES MENORES, PRUEBAS, DESPERDICIOS Y ACARREO DEL MATERIAL AL SITIO DE SU COLOCACION, A CUALQUIER NIVEL.","SAL","2.0000",0,"CERO PESOS 00/100 M.N.",0,266440]
[524521,"SALIDA ELECTRICA DE FUERZA PARA BOMBA, OCULTA,  CON TUBERIA Y CONEXIONES CONDUIT DE PVC. PESADO DE 13 MM. DE DIAMETRO, CABLE VINANEL THW-LS 600 V. A 75° C, 90° C, MARCA CONDUCTORES MONTERREY, (VIAKON-PROTOCOLIZADO), CABLE VINANEL 21 THW-LS 600 V. A 75° C, 90° C, MARCA CONDUMEX (CONDUMEX PROTOCOLIZADO).  CALIBRE 12 EN FASES Y 12 EN TIERRA FISICA, CAJAS DE REGISTRO  CUADRADAS, CHALUPAS Y TAPAS DE PVC REFORZADO, TAPA DE ALUMINIO, INCLUYE: TRAZO, RANURAS, CONEXION A TIERRA, ACCESORIOS, MATERIALES MENORES Y DE CONSUMO, PRUEBAS, DESPERDICIOS Y ACARREO DEL MATERIAL AL SITIO DE SU COLOCACION, A CUALQUIER NIVEL.","SAL","1.0000",0,"CERO PESOS 00/100 M.N.",0,266442]
[540022,"SUMINISTRO Y COLOCACION DE CENTRO DE CARGAS TIPO QOD-4, MCA. SQUARE D, INCLUYE: ELEMENTOS DE FIJACION,  PRUEBAS, MATERIALES MENORES Y DE CONSUMO, CONEXIONES, LIMPIEZAS, HERRAMIENTAS, MANO DE OBRA ESPECIALIZADA Y ACARREO DE MATERIALES AL SITIO DE SU COLOCACION.","PZA","1.0000",0,"CERO PESOS 00/100 M.N.",0,266443]
[543012,"SUMINISTRO Y COLOCACION DE INTERRUPTOR TERMOMAGNETICO DERIVADO CON 1 POLOS, DE 15-60 AMPERES, MCA. SQUARE D, CAT. QO. INCLUYE: PRUEBAS, MATERIALES MENORES, HERRAMIENTAS, MANO DE OBRA ESPECIALIZADA  Y ACARREO DE MATERIALES AL SITIO DE SU COLOCACION.","PZA","2.0000",0,"CERO PESOS 00/100 M.N.",0,266445]
[543020,"SUMINISTRO Y COLOCACION DE INTERRUPTOR TERMOMAGNETICO CON 2 POLOS, DE 15-50 AMPERES, MCA. SQUARE D, CAT. QO. INCLUYE: PRUEBAS, FLETES, MATERIALES MENORES Y ACARREO DE MATERIALES AL SITIO DE SU COLOCACION.","PZA","1.0000",0,"CERO PESOS 00/100 M.N.",0,266447]
[544022,"SUMINISTRO E INSTALACION DE INTERRUPTOR DE FLOTADOR MCA. SQUARE'D, CAT. 9036FG. INC.: MATERIALES MENORES, PRUEBAS Y ACARREO DE MATERIALES AL SITIO DE SU COLOCACION.","PZA","1.0000",0,"CERO PESOS 00/100 M.N.",0,266448]
[544222,"SUMINISTRO E INSTALACION DE ARRANCADOR MANUAL MONOFASICO EN GABINETE DE USOS GENERALES NEMA 1, MCA. SQUARE D, CLASE 2510 , CAT. FG1, 1F,  INCLUYE: MATERIALES MENORES Y DE CONSUMO, HERRAMIENTAS, ELEMENTOS DE FIJACION, PRUEBAS, MONO DE OBRA ESPECIALIZADA Y ACARREO DE MATERIALES AL SITIO DE SU COLOCACION.","PZA","1.0000",0,"CERO PESOS 00/100 M.N.",0,266449]
[550066,"SUMINISTRO E INSTALACION DE LUMINARIO DE SOBREPONER DE 37 WATTS., 5200 LUMENES TOTALES, GABINETE CON MEDIDAS GENERALES APROXIMADAS DE 127 X 17 X 13 CM., CARCASA FABRICADA EN POLIESTER REFORZADO CON FIBRA DE VIDRIO AUTO-EXTINGUIBLE, DIFUSOR DE POLICARBONATO PRISMÁTICO TRANSPARENTE  RESISTENTE A IMPACTOS,  CON PROTECCION UV,  CIERRE HERMETICO IP-65 DISEÑADA A PRUEBA DE POLVO, VAPORES Y AGUA, PARA OPERAR CON DOS LAMPARAS (TUBOS) LED T8 DE 18.5 WATTS CADA UNA, TEMPERATURA DE COLOR 4000°K, IRC>80, VIDA UTIL DE 50,000 HRS. CON UN FACTOR DE PERDIDA DE LUZ MAYOR O IGUAL A L70 CERTIFICADO POR IESNA, 120-277 VOLTS, LA LUMINARIA (COMPLETA) DEBERA CUMPLIR CON LA NORMA ANCE, INCLUYE: COPIAS DE CERTIFICACION DE CALIDAD Y FUNCIONALIDAD (ANCE, IESNA, NSF, UL)  ANEXAS EN ELTRAMITE DE LA ESTIMACION, FIJACION, NIVELACION, CONEXION ELECTICA, MATERIALES MENORES Y DE CONSUMO, HERRAMIENTAS, ANDAMIOS, GARANTIAS POR ESCRITO, PRUEBAS, LIMPIEZA, MANO DE OBRA, Y ACARREOS.","PZA","7.0000",0,"CERO PESOS 00/100 M.N.",0,266450]
["E.14(564)","INSTALACION HIDRAULICA, SANITARIA Y GAS EN EDIF.  ",null,null,null,null,{"$f":"TEXT(SUM(G152:G156), \"$ #,##0.00 ;\")","v":"$ 0.00 "}]
[570610,"SALIDA HIDRAULICA DE AGUA FRIA Y/O CALIENTE PARA SISTEMA HIDRAULICO ABIERTO (TINACOS), ALIMENTACION A MUEBLE SANITARIO, CONSISTENTE EN TUBERIA Y CONEXIONES DE CPVC DE 1/2\" A 1 1/2\" DE DIAMETRO,  INCLUYE: TRAZO, RANURAS, CONEXIONES, ( COPLES, CODOS, TAPONES, TEES, YEES, REDUCCIONES, ETC),  VALVULAS, TUERCAS UNION EN CUADROS DE VALVULAS, MATERIALES MENORES Y DE CONSUMO, PEGAMENTOS, ELEMENTOS DE FIJACION, DESPERDICIOS,  HERRAMIENTAS, LIMPIEZA, MANO DE OBRA, PRUEBAS HIDROSTATICAS, FLETES Y ACARREO DE LOS MATERIALES AL SITIO DE SU INSTALACION. (EN CUALQUIER NIVEL)","SAL","21.0000",0,"CERO PESOS 00/100 M.N.",0,266453]
[571102,"SALIDA SANITARIA A MUEBLE, CONSISTENTE EN TUBERIA Y CONEXIONES DE PVC DE 2\" Y 4\" DE DIAMETRO, INCLUYE: DESPERDICIO DE TUBERIA, LINEA DE VENTILACION (DESFOGUE),  COPLES, CODOS, TEES, YEES, REDUCCIONES, REGISTRO SANITARIO, MATERIALES MENORES, FLETES Y ACARREO DE LOS MATERIALES AL SITIO DE SU INSTALACION Y PRUEBAS.\n","SAL","32.0000",0,"CERO PESOS 00/100 M.N.",0,266454]
[579012,"SUCCION Y DESCARGA DE BOMBA HASTA TINACO,  INCLUYE: SUMINISTRO Y COLOCACION DE TUBERIA DE COBRE TIPO \"M\", CONEXION DE VALVULAS, BY PASS, DESDE EL FONDO DE LA CISTERNA (PICHANCHA) HASTA LA DESCARGA EN EL FLOTADOR DEL TINACO, MATERIALES MENORES, DESPERDICIOS, PRUEBAS Y ACARREO DE MATERIALES AL SITIO DE SU COLOCACION.","PZA","1.0000",0,"CERO PESOS 00/100 M.N.",0,266455]
[579132,"INTERCONEXION Y DESCARGA PARA 3 TINACOS CON TUBERIA Y CONEXIONES DE COBRE TIPO \"M\". INCLUYE: VALVULAS, DESPERDICIO, MATERIALES MENORES, PRUEBAS Y  ACARREO DE MATERIALES AL SITIO DE SU COLOCACION.","PDA","1.0000",0,"CERO PESOS 00/100 M.N.",0,266456]
[592012,"SUMINISTRO Y COLOCACION DE CESPOL BOTE DE P.V.C. CON REJILLA CROMADA. INCLUYE: MATERIALES MENORES Y DE CONSUMO, HERRAMIENTAS, DESPERDICIOS, PRUEBAS, MANO DE OBRA Y ACARREO DE MATERIALES AL SITIO DE SU COLOCACION.","PZA","11.0000",0,"CERO PESOS 00/100 M.N.",0,266457]
["E.15(590)","MUEBLES DE BAÑO Y COCINA                          ",null,null,null,null,{"$f":"TEXT(SUM(G158:G168), \"$ #,##0.00 ;\")","v":"$ 0.00 "}]
[385040,"SUMINISTRO Y COLOCACION DE DISPENSADOR DE PAPEL HIGIENICO JUMBO JR, COLOR HUMO, MARCA KIMBERLY CLARK PROFESIONAL, MODELO 94208, INCLUYE: NIVELADO, PLOMEO, MATERIALES MENORES Y DE CONSUMO, ELEMENTOS DE FIJACION, EQUIPO,  HERRAMIENTA, LIMPIEZA, MANO DE OBRA Y ACARREOS AL SITIO DE SU INSTALACION. EN CUALQUIER NIVEL.","PZA","10.0000",0,"CERO PESOS 00/100 M.N.",0,266458]
[385066,"SUMINISTRO Y COLOCACION DE DESPACHADOR DE  JABON LIQUIDO, COLOR HUMO, MARCA KIMBERLY CLARK PROFESIONAL, MODELO 94236, INCLUYE: NIVELADO, PLOMEO, MATERIALES MENORES Y DE CONSUMO, ELEMENTOS DE FIJACION, EQUIPO,  HERRAMIENTA, LIMPIEZA, MANO DE OBRA Y ACARREOS AL SITIO DE SU INSTALACION. EN CUALQUIER NIVEL.","PZA","6.0000",0,"CERO PESOS 00/100 M.N.",0,266459]
[385302,"SUMINISTRO Y COLOCACION DE BARRA DE APOYO PARA DISCAPACITADOS DE ACERO INOXIDABLE PARA MINGITORIO (MULETAS) MOD. 7384-0 (1041) DE SANILOCK O SIMILAR CON CHAPETON, FIJADO A MURO. INCLUYE: ACCESORIOS Y MATERIALES DE FIJACION.","PZA","1.0000",0,"CERO PESOS 00/100 M.N.",0,266460]
[385312,"SUMINISTRO Y COLOCACION DE BARRA DE APOYO PARA DISCAPACITADOS DE ACERO INOXIDABLE PARA W.C. MOD. 7386-0 (1045) DE SANILOCK O SIMILAR CON CHAPETON, FIJADO A MURO. INCLUYE: ACCESORIOS Y MATERIALES DE FIJACION.","PZA","2.0000",0,"CERO PESOS 00/100 M.N.",0,266461]
[590037,"SUMINISTRO E INSTALACION DE INODORO CON TANQUE BAJO DE UNA PIEZA, MARCA CASTEL, MODELO HERMES O SIMILAR, COLOR BLANCO, INCLUYE: ASIENTO DE PLASTICO,  ACCESORIOS PARA EL TANQUE, TAPA DE TANQUE CON BOTONERA DE DESCARGA, LLAVE ANGULAR FIG. 401, MANGUERA FLEXIBLE COFLEX, MATERIALES MENORES Y DE CONSUMO, ELEMENTOS DE FIJACION, LIMPIEZA, CUELLO DE CERA CON GUIA, PRUEBAS, HERRAMIENTAS, MANO DE OBRA Y ACARREO DE MATERIALES AL SITIO DE SU COLOCACION.","PZA","10.0000",0,"CERO PESOS 00/100 M.N.",0,266462]
[590112,"SUMINISTRO Y COLOCACION DE MINGITORIO BLANCO, MCA. AMERICAN STANDARD MOD. NIAGARA O SIMILAR. INCLUYE: LLAVE DE CAMPANA FIG. 17 MG MCA. URREA,  MATERIALES MENORES, PRUEBAS Y ACARREO DE MATERIALES AL SITIO DE SU COLOCACION.","PZA","3.0000",0,"CERO PESOS 00/100 M.N.",0,266463]
[590263,"SUMINISTRO Y COLOCACION DE OVALIN DE SOBREPONER REDONDO, MCA. AMERICAN STANDAR, MOD. PIAZZA MONOMANDO O SIMILAR, INCLUYE: LLAVES ANGULARES FIG. 401, CESPOL CROMADO MCA. URREA FIG. 207, LLAVE ECONOMIZADORA DE CIERRE AUTOMATICO MARCA HELVEX FIG. TV-120, MANGUERA COFLEX, DESPERDICIOS, MATERIALES MENORES Y DE CONSUMO, ELEMENTOS DE FIJACION, MANO DE OBRA, HERRAMIENTA, LIMPIEZA, EQUIPO, PRUEBAS Y ACARREO DE MATERIALES AL SITIO DE SU COLOCACION.","PZA","6.0000",0,"CERO PESOS 00/100 M.N.",0,266464]
[590356,"SUMINISTRO Y COLOCACION DE VERTEDERO DE ACERO INOXIDABLE CAL. 18, TIPO 304 18/10, DE 40 X 40 X 26 M.,  INCLUYE: LLAVE DE CHORRO CROMADA FIG. 18-L, CHAPETON CROMADO, CONTRA CANASTA MCA. URREA FIG. 3801, MATERIALES MENORES Y DE CONSUMO, NIVELACION, SELLADO PERIMETRAL, PRUEBAS, HERRAMIENTAS, LIMPIEZA, MANO DE OBRA Y ACARREO AL SITIO DE SU COLOCACION.","PZA","2.0000",0,"CERO PESOS 00/100 M.N.",0,266465]
[590522,"SUMINISTRO, ELEVACION Y COLOCACION DE TINACO PREFABRICADO LIGERO DE 1100 LTS DE CAP., (REDONDO) FABRICADO CON PLASTICO DE ALTA RESISTENCIA A RAYOS SOLARES, CLIMAS EXTREMOS E INTEMPERISMO, MOLDEADO, DE DOS CAPAS, INCLUYE: FLETES, MATERIALES MENORES, CONEXIONES, PRUEBAS, GARANTÍAS, NIVELACION, HERRAMIENTAS, LIMPIEZA, TAPA ROSCADA Y MANO DE OBRA. CUALQUIER ALTURA.","PZA","3.0000",0,"CERO PESOS 00/100 M.N.",0,266466]
[591312,"SUMINISTRO Y COLOCACION DE VALVULA DE FLOTADOR ALTA PRESION DE 19 MM  DE DIAM., CON BOLA DE COBRE DE 6\" DE DIAM. INC.: MATERIALES MENORES, PRUEBAS Y ACARREO DE MATERIALES AL SITIO DE SU COLOCACION.","PZA","1.0000",0,"CERO PESOS 00/100 M.N.",0,266467]
[593328,"SUMINISTRO Y COLOCACION DE MOTOBOMBA DE 3/4 H.P, INCLUYE: MATERIALES MENORES, PRUEBAS Y ACARREO DE MATERIALES AL SITIO DE SU COLOCACION.","PZA","1.0000",0,"CERO PESOS 00/100 M.N.",0,266468]
["02","RED ELECTRICA",null,null,null,null,{"$f":"TEXT(SUM(G170 + G172), \"$ #,##0.00 ;\")","v":"$ 0.00 "}]
["02.01(140)","DEMOLICIONES, DESMONTAJES Y MECANICA DE SUELOS    ",null,null,null,null,{"$f":"TEXT(SUM(G171:G171), \"$ #,##0.00 ;\")","v":"$ 0.00 "}]
[140217,"DEMOLICION DE PISO DE CONCRETO DE 8 A 10 CM DE ESPESOR, EN FRANJAS DE 40 A 50 CMS. DE ANCHO, PARA COLOCACION DE INSTALACIONES, INCLUYE: CORTE CON DISCO PARA DELIMITAR AREA DE DEMOLICION, AFINE Y COMPACTACION DEL MATERIAL DE RELLENO, MATERIALES, REPOSICION DEL PISO DE CONCRETO F´C= 150 KG/CM2, ACABADO IGUAL AL EXISTENTE, DESPERDICIOS, MANO DE OBRA, HERRAMIENTA, EQUIPO, LIMPIEZA,  ACARREOS DE MATERIALES AL SITIO DE SU UTILIZACION, CARGA Y ACARREO INTERIOR Y FUERA DE LA OBRA DEL MATERIAL PRODUCTO DE LA DEMOLICION.","ML ","20.0000",0,"CERO PESOS 00/100 M.N.",0,266469]
["02.02(511)","INSTALACION ELECTRICA EN OBRA EXTERIOR            ",null,null,null,null,{"$f":"TEXT(SUM(G173:G184), \"$ #,##0.00 ;\")","v":"$ 0.00 "}]
[534004,"SUMINISTRO Y TENDIDO DE TUBO CONDUIT DE P.V.C. PESADO, DE 19 MM DIAM. INCLUYE: CONEXIONES, TRAZO, EXCAVACION, RELLENO, DESPERDICIOS, MATERIALES MENORES, PRUEBAS Y ACARREO AL SITIO DE SU COLOCACION.","ML ","30.0000",0,"CERO PESOS 00/100 M.N.",0,266482]
[534110,"SUMINISTRO Y COLOCACION DE TUBO CONDUIT GALVANIZADO, DE 38 MM, PARED GRUESA ROSCADA ETIQUETA AMARILLA, INCLUYE: TRAZO, CORTES, AJUSTES, CONECTORES, COPLES, DOBLECES, ROSCADO, DESPERDICIOS, MATERIALES MENORES, HERRAMIENTAS, PRUEBAS, LIMPIEZA, MANO DE OBRA Y ACARREO DE MATERIALES AL SITIO DE SU COLOCACION.","ML ","3.0000",0,"CERO PESOS 00/100 M.N.",0,266483]
[534126,"SUMINISTRO Y COLOCACION DE TUBO CONDUIT GALVANIZADO, DE 38 MM, PARED DELGADA DE AJUSTE ETIQUETA VERDE, INCLUYE: TRAZO, CORTES, AJUSTES, CONECTORES, COPLES,  DOBLECES, DESPERDICIOS, MATERIALES MENORES, HERRAMIENTAS, PRUEBAS, LIMPIEZA, MANO DE OBRA Y ACARREO DE MATERIALES AL SITIO DE SU COLOCACION.","ML ","4.0000",0,"CERO PESOS 00/100 M.N.",0,266484]
[536008,"SUMINISTRO Y COLOCACION DE CABLE VINANEL THW-LS 600 V. A 75° C, 90° C, MARCA CONDUCTORES MONTERREY, (VIAKON-PROTOCOLIZADO), CABLE VINANEL 21 THW-LS 600 V. A 75° C, 90° C, MARCA CONDUMEX (CONDUMEX PROTOCOLIZADO). CAL. 10,  INCLUYE: DESPERDICIOS, MATERIALES MENORES, HERRAMIENTA, CONEXIONES, MANO DE OBRA ESPECIALIZADA, LIMPIEZA DEL AREA DE TRABAJO, PRUEBAS Y ACARREO AL SITIO DE SU COLOCACION.","ML ","70.0000",0,"CERO PESOS 00/100 M.N.",0,266485]
[536014,"SUMINISTRO Y COLOCACION DE CABLE VINANEL THW-LS 600 V. A 75° C, 90° C, MARCA CONDUCTORES MONTERREY, (VIAKON-PROTOCOLIZADO), CABLE VINANEL 21 THW-LS 600 V. A 75° C, 90° C, MARCA CONDUMEX (CONDUMEX PROTOCOLIZADO). CAL. 4,  INCLUYE: DESPERDICIOS, MATERIALES MENORES, HERRAMIENTA, CONEXIONES, MANO DE OBRA ESPECIALIZADA, LIMPIEZA DEL AREA DE TRABAJO, PRUEBAS Y ACARREO AL SITIO DE SU COLOCACION.","ML ","15.4000",0,"CERO PESOS 00/100 M.N.",0,266486]
[537108,"SUMINISTRO Y COLOCACION DE CABLE DE COBRE DESNUDO CAL. 10, AWG, MCA. CONDUMEX, CONELEC O CONDUCTORES MONTERREY. INCLUYE: DESPERDICIOS, MATERIALES MENORES, PRUEBAS Y ACARREO AL SITIO DE SU COLOCACION.","ML ","65.0000",0,"CERO PESOS 00/100 M.N.",0,266487]
[537112,"SUMINISTRO Y COLOCACION DE CABLE DE COBRE DESNUDO CAL. 8, AWG, MCA. CONDUMEX, CONELEC O CONDUCTORES MONTERREY. INCLUYE: DESPERDICIOS, MATERIALES MENORES, PRUEBAS Y ACARREO AL SITIO DE SU COLOCACION.","ML ","7.7000",0,"CERO PESOS 00/100 M.N.",0,266488]
[540305,"SUMINISTRO E INSTALACION DE CENTRO DE CARGA CAT. QO-816L-100,  DE 8 POLOS  100 AMPERES, INCLUYE: MATERIALES, ZAPATAS, MANO DE OBRA, HERRAMIENTAS, ELEMENTOS DE FIJACION, PRUEBAS,  ACARREOS Y MATERIALES MENORES.","PZA","1.0000",0,"CERO PESOS 00/100 M.N.",0,266489]
[543012,"SUMINISTRO Y COLOCACION DE INTERRUPTOR TERMOMAGNETICO DERIVADO CON 1 POLOS, DE 15-60 AMPERES, MCA. SQUARE D, CAT. QO. INCLUYE: PRUEBAS, MATERIALES MENORES, HERRAMIENTAS, MANO DE OBRA ESPECIALIZADA  Y ACARREO DE MATERIALES AL SITIO DE SU COLOCACION.","PZA","5.0000",0,"CERO PESOS 00/100 M.N.",0,266490]
[558027,"MURETE PARA ACOMETIDA ELECTRICA DE PARA PRIMARIA Y/O JARDIN DE NIÑOS DE 1.90 MT DE ALTURA POR 0.94 MTS. DE ANCHO Y 0.60 MT. DE FONDO, A BASE DE MURO DE LAMA DE 7 X 14 X 28 A TEZON EN PARTE INFERIOR Y A SOGA EN EL AREA DESTINADA PARA LA CAJA DE SOQUET DE MEDICION E INTERRUPTORES, DALAS Y CASTILLOS  DE CONCRETO F´C=150 KG/CM2, DALA DE DESPLANTE APARENTE DE 28 X 10 CM. LOSAS Y MUROS DE CONCRETO F´C= 150 KG/CM2., ARMADO  DE A CUERDO A INDICACIONES DE PLANO, INCLUYE: SUM. Y COLOCACION DE BASE SOQUET (5 X 100) MONOFASICA DE 100 A. MCA. C.H. O SIMILAR EMPOTRADA EN MURETE,  EXCAVACION, CIMENTACION DE PIEDRA, BASES PARA CASTILLOS,  APLANADO, PINTURA VINILICA Y ESMALTE, PERFORACIONES, REGISTRO ELECTRICO, TUBERIAS CONDUIT GALV. PG. PARA CONEXION A PREPARACION AEREA DE MUFA YTUBERIA CONDUIT DE PVC. PESADO PARA CONEXION A REGISTRO DE DISTRIBUCION, SEÑALIZACION DEL MURETE, PUERTAS METALICAS,  MATERIALES, HERRAMIENTAS, LIMPIEZA Y MANO DE OBRA.","PZA","1.0000",0,"CERO PESOS 00/100 M.N.",0,266491]
[558522,"SUMINISTRO Y COLOCACION DE VARILLA DE TIERRA COOPERWELD, DE 3.00 M X 19 MM DE DIAM.  INCLUYE: UNA  CARGA CADWELD NO. 90, CONECTOR COOPER WELD, SOLDADURA CADWELD NO. 90, PARTE PROPORCIONAL DE MOLDE 161V.,  MATERIALES MENORES, PRUEBAS Y ACARREO AL SITIO DE SU COLOCACION.","PZA","2.0000",0,"CERO PESOS 00/100 M.N.",0,266492]
[880617,"SUMINISTRO Y COLOCACION DE REGISTRO ELECTRICO DE CONCRETO, PREFABRICADO, PARA ALUMBRADO DE 40 X 60 X 80 CM., CON TAPA DE CONCRETO,  MARCO Y CONTRAMARCO  DE ACERO GALVANIZADO, INCLUYE: TRAZO, EXCAVACION, RELLENOS COMPACTADOS, FILTRO DE GRAVA, RESANADO FINO DE TUBERIAS EN SU INTERIOR, HERRAMIENTAS, MANO DE OBRA, FLETES, ACARREO AL SITIO DE SU COLOCACION Y LIMPIEZA DEL AREA DE TRABAJO.","PZA","3.0000",0,"CERO PESOS 00/100 M.N.",0,266493]
["03","RED SANITARIA",null,null,null,null,{"$f":"TEXT((G186), \"$ #,##0.00 ;\")","v":"$ 0.00 "}]
["03.01(565)","INSTALACION HIDRAULICA, SANITARIA Y GAS EN O. EXT.",null,null,null,null,{"$f":"TEXT(SUM(G187:G189), \"$ #,##0.00 ;\")","v":"$ 0.00 "}]
[585014,"SUMINISTRO Y COLOCACION DE TUBO DE P.V.C. SANITARIO (ANGER)  SERIE 25, CAMPANA, DE 6\" (150 MM) DIAM., INCLUYE: CONEXIONES, TRAZO, EXCAVACION,  PASOS POR CIMENTACION, CAMA DE ARENA, RELLENO COMPACTADO, DESPERDICIOS, PRUEBAS Y ACARREO DE MATERIALES AL SITIO DE SU COLOCACION.","ML ","15.0000",0,"CERO PESOS 00/100 M.N.",0,266494]
[596032,"REGISTRO SANITARIO DE 0.60 X 0.40 X 0.80 M, CON MURO DE LADRILLO DE LAMA DE 5.5 X 11.0 X 22.0 CM, ASENTADO CON MORTERO CEMENTO-ARENA 1:3, APLANADO CON MORTERO CEMENTO-ARENA DE RIO 1:3, INCLUYE: TRAZO, EXCAVACIONES, NIVELACION, RELLENO CON MATERIAL PRODUCTO DE EXCAVACION, RETIRO DE MATERIAL EXCEDENTE FUERA DE LA OBRA, TAPA DE CONCRETO F'C=200 KG/CM2, MARCO Y CONTRAMARCO DE ANGULO DE 1 1/2\" X 1/8\", MATERIALES, DESPERDICIOS, HERRAMIENTAS, MANO DE OBRA, LIMPIEZA, RETIRO DE MATERIAL PRODUCTO DE EXCAVACION FUERA DE LA OBRA Y ACARREO DE MATERIALES AL SITIO DE SU UTILIZACION.","PZA","2.0000",0,"CERO PESOS 00/100 M.N.",0,266499]
[596036,"REGISTRO SANITARIO DE 0.60 X 0.60 X 0.80 M, CON MURO DE LADRILLO DE LAMA DE 5.5 X 11.0 X 22.0 CM, ASENTADO CON MORTERO CEMENTO-ARENA 1:3, APLANADO CON MORTERO CEMENTO-ARENA DE RIO 1:3, INCLUYE: TRAZO, EXCAVACIONES, NIVELACION, RELLENO CON MATERIAL PRODUCTO DE EXCAVACION, RETIRO DE MATERIAL EXCEDENTE FUERA DE LA OBRA, TAPA DE CONCRETO F'C=200 KG/CM2, MARCO Y CONTRAMARCO DE ANGULO DE 1 1/2\" X 1/8\", MATERIALES, DESPERDICIOS, HERRAMIENTAS, MANO DE OBRA, LIMPIEZA, RETIRO DE MATERIAL PRODUCTO DE EXCAVACION FUERA DE LA OBRA Y ACARREO DE MATERIALES AL SITIO DE SU UTILIZACION.","PZA","2.0000",0,"CERO PESOS 00/100 M.N.",0,266500]
["04","RED HIDRAULICA",null,null,null,null,{"$f":"TEXT((G191), \"$ #,##0.00 ;\")","v":"$ 0.00 "}]
["04.01(565)","INSTALACION HIDRAULICA, SANITARIA Y GAS EN O. EXT.",null,null,null,null,{"$f":"TEXT(SUM(G192:G194), \"$ #,##0.00 ;\")","v":"$ 0.00 "}]
[589313,"SUMINISTRO Y TENDIDO DE TUBERÍA DE CPVC-CTS, PARA CEMENTAR  DE 19 MM DE DIAM. INCLUYE: TRAZO, CONEXIONES (COPLES, CODOS, TEES, NIPLES, ETC), DESPERDICIOS, ENCOFRADO CON CONCRETO F'C=100 KG/CM2 DE 6 X 15 CMS DE SECCION, MATERIALES MENORES Y DE CONSUMO, PRUEBAS, EXCAVACIÓN, RELLENO, HERRAMIENTAS, MANO DE OBRA Y ACARREO DE MATERIALES AL SITIO DE SU COLOCACIÓN.","ML ","22.0000",0,"CERO PESOS 00/100 M.N.",0,266495]
[591410,"SUMINISTRO Y COLOCACION DE VALVULA DE ESFERA (BOLA) EXTREMOS ROSCADOS 3/4\" (19 MM) DE DIAMETRO. MCA URREA, FIG. 550,  INCLUYE: MATERIALES MENORES Y DE CONSUMO, HERRAMIENTAS, PRUEBAS, LIMPIEZA, MANO DE OBRA Y ACARREOS DE MATERIALES AL SITIO DE SU COLOCACION.","PZA","1.0000",0,"CERO PESOS 00/100 M.N.",0,266497]
[596002,"REGISTRO HIDRAULICO DE 0.40 X 0.40 X 0.60 M, CON MURO DE LADRILLO DE LAMA 5.5 X 11.0 X 22.0 CM, ASENTADO CON MORTERO CEMENTO-ARENA 1:3, A SOGA, APLANADO CON MORTERO CEMENTO-ARENA DE RIO 1:3,  Y PISO DE CONCRETO ACABADO PULIDO. INCLUYE: TRAZO, EXCAVACIONES, NIVELACION, RELLENO CON MATERIAL PRODUCTO DE EXCAVACION, RETIRO DE MATERIAL EXCEDENTE FUERA DE LA OBRA, TAPA DE CONCRETO F'C=200 KG/CM2, MARCO Y CONTRAMARCO DE ANGULO DE 1 1/2\" X 1/8\", MATERIALES, DESPERDICIOS, HERRAMIENTAS, MANO DE OBRA, LIMPIEZA, RETIRO DE MATERIAL PRODUCTO DE EXCAVACION FUERA DE LA OBRA Y ACARREO DE MATERIALES AL SITIO DE SU UTILIZACION.","PZA","1.0000",0,"CERO PESOS 00/100 M.N.",0,266498]
["05","CISTERNA",null,null,null,null,{"$f":"TEXT((G196), \"$ #,##0.00 ;\")","v":"$ 0.00 "}]
["05.01(565)","INSTALACION HIDRAULICA, SANITARIA Y GAS EN O. EXT.",null,null,null,null,{"$f":"TEXT(SUM(G197:G198), \"$ #,##0.00 ;\")","v":"$ 0.00 "}]
[591312,"SUMINISTRO Y COLOCACION DE VALVULA DE FLOTADOR ALTA PRESION DE 19 MM  DE DIAM., CON BOLA DE COBRE DE 6\" DE DIAM. INC.: MATERIALES MENORES, PRUEBAS Y ACARREO DE MATERIALES AL SITIO DE SU COLOCACION.","PZA","1.0000",0,"CERO PESOS 00/100 M.N.",0,266496]
[597109,"SUMINISTRO Y COLOCACION  DE CISTERNA PREFABRICADA DE 10 M3 DE CAPACIDAD, FORMADA A BASE DE SUMINISTRO E INSTALACION DE 2 (DOS) CISTERNAS PREFABRICADA DE CONCRETO F`C=250 KG/CM2, ARMADA CON ACERO DE REFUERZO F`Y= 5000 KG/CM2, PARA UNA CAPACIDAD DE 5,000 LTS. APROXIMADAMENTE, INCLUYE: FLETE, GRUA, TRAZO, LIMPIEZA, EXCAVACIONES EN MATERIAL TIPO \"A\" Y/O \"B\",  NIVELACION, AFINE, CONFORMACION DEL TERRENO RESULTANTE, INTERCONEXION DE LAS 2 CISTERNAS CON TUBERIA Y CONEXIONES DE PVC CED. 40 DE 6\" DE DIAMETRO, FIRME DE CONCRETO F´C= 150 KG/CM2, ARMADO CON MALLA ELECTROSOLDADE 6 X 6-10/10 DE 10 CMS. DE ESPESOR,  BROCALES, TAPAS METALICA DE FO.FO. PARA REGISTRO, AGUA PARA LLENADO DE CISTERNA DURANTE EL RELLENO, RELLENOS A VOLTEO Y RELLENOS COMPACTADOS AL 90% DE SU PVSM., DESPERDICIOS, PRUEBAS, EQUIPO, GARANTIA POR ESCRITO DE POR LO MENOS DE 5 AÑO,  HERRAMIENTA, MANO DE OBRA Y RETIRO DE MATERIAL SOBRANTE PRODUCTO DE EXCAVACION FUERA DE LA OBRA. ","PZA","1.0000",0,"CERO PESOS 00/100 M.N.",0,266501]
[null,"RESUMEN DE PARTIDAS"]
["BAS-CONA-04143","CONSTRUCCIÓN DE NÚCLEO DE SERVICIOS SANITARIOS Y REHABILITACIÓN GENERAL EN LA ESCUELA PRIMARIA AMADO NERVO CCT14EPR0663E, UBICADA EN LA LOCALIDAD CAMAJAPITA, MUNICIPIO DE SAN MARTÍN HIDALGO, JALISCO. ",null,null,null,null,{"$f":"G17","v":"$ 0.00 "}]
["EDFS","EDIFICIOS",null,null,null,null,{"$f":"G18","v":"$ 0.00 "}]
["EDFS.01(140)","DEMOLICIONES, DESMONTAJES Y MECANICA DE SUELOS    ",null,null,null,null,{"$f":"G19","v":"$ 0.00 "}]
["EDFS.02(200)","ESTRUCTURA                                        ",null,null,null,null,{"$f":"G26","v":"$ 0.00 "}]
["EDFS.03(319)","ENTREPISOS, CUBIERTA Y ACABADOS DE AZOTEA         ",null,null,null,null,{"$f":"G28","v":"$ 0.00 "}]
["EDFS.04(393)","PINTURA                                           ",null,null,null,null,{"$f":"G39","v":"$ 0.00 "}]
["EDFS.05(510)","INSTALACION ELECTRICA EN EDIFICIO                 ",null,null,null,null,{"$f":"G42","v":"$ 0.00 "}]
["E","EDIFICIO E",null,null,null,null,{"$f":"G50","v":"$ 0.00 "}]
["E.01(140)","DEMOLICIONES, DESMONTAJES Y MECANICA DE SUELOS    ",null,null,null,null,{"$f":"G51","v":"$ 0.00 "}]
["E.02(150)","TRABAJOS PRELIMINARES                             ",null,null,null,null,{"$f":"G53","v":"$ 0.00 "}]
["E.03(160)","CIMENTACION                                       ",null,null,null,null,{"$f":"G58","v":"$ 0.00 "}]
["E.04(200)","ESTRUCTURA                                        ",null,null,null,null,{"$f":"G75","v":"$ 0.00 "}]
["E.05(310)","MUROS, CADENAS, CASTILLOS Y REPIZONES.            ",null,null,null,null,{"$f":"G84","v":"$ 0.00 "}]
["E.06(319)","ENTREPISOS, CUBIERTA Y ACABADOS DE AZOTEA         ",null,null,null,null,{"$f":"G98","v":"$ 0.00 "}]
["E.07(355)","RECUBRIMIENTOS Y ACABADOS                         ",null,null,null,null,{"$f":"G100","v":"$ 0.00 "}]
["E.08(372)","PISOS                                             ",null,null,null,null,{"$f":"G105","v":"$ 0.00 "}]
["E.09(382)","ELEMENTOS COMPLEMENTARIOS DE ALBAÑILERIA          ",null,null,null,null,{"$f":"G114","v":"$ 0.00 "}]
["E.10(393)","PINTURA                                           ",null,null,null,null,{"$f":"G118","v":"$ 0.00 "}]
["E.11(396)","LIMPIEZA                                          ",null,null,null,null,{"$f":"G123","v":"$ 0.00 "}]
["E.12(410)","CANCELERIA, HERRERIA, ALUMINIO, VIDRIOS Y CHAPAS  ",null,null,null,null,{"$f":"G129","v":"$ 0.00 "}]
["E.13(510)","INSTALACION ELECTRICA EN EDIFICIO                 ",null,null,null,null,{"$f":"G141","v":"$ 0.00 "}]
["E.14(564)","INSTALACION HIDRAULICA, SANITARIA Y GAS EN EDIF.  ",null,null,null,null,{"$f":"G151","v":"$ 0.00 "}]
["E.15(590)","MUEBLES DE BAÑO Y COCINA                          ",null,null,null,null,{"$f":"G157","v":"$ 0.00 "}]
["02","RED ELECTRICA",null,null,null,null,{"$f":"G169","v":"$ 0.00 "}]
["02.01(140)","DEMOLICIONES, DESMONTAJES Y MECANICA DE SUELOS    ",null,null,null,null,{"$f":"G170","v":"$ 0.00 "}]
["02.02(511)","INSTALACION ELECTRICA EN OBRA EXTERIOR            ",null,null,null,null,{"$f":"G172","v":"$ 0.00 "}]
["03","RED SANITARIA",null,null,null,null,{"$f":"G185","v":"$ 0.00 "}]
["03.01(565)","INSTALACION HIDRAULICA, SANITARIA Y GAS EN O. EXT.",null,null,null,null,{"$f":"G186","v":"$ 0.00 "}]
["04","RED HIDRAULICA",null,null,null,null,{"$f":"G190","v":"$ 0.00 "}]
["04.01(565)","INSTALACION HIDRAULICA, SANITARIA Y GAS EN O. EXT.",null,null,null,null,{"$f":"G191","v":"$ 0.00 "}]
["05","CISTERNA",null,null,null,null,{"$f":"G195","v":"$ 0.00 "}]
["05.01(565)","INSTALACION HIDRAULICA, SANITARIA Y GAS EN O. EXT.",null,null,null,null,{"$f":"G196","v":"$ 0.00 "}]
[]
["IMPORTE CON LETRA (IVA INCLUIDO)",null,null,null,null,"SUBTOTAL M.N.",{"$f":"TEXT(G17,  \"$ #,##0.00 ;\")","v":"$ 0.00 "}]
[{"$f":"UPPER(CONVERTIRNUM(ROUND( G17 * 1.16, 2)))","v":"CERO PESOS 00/100 M.N."},null,null,null,null,"IVA M.N.",{"$f":"TEXT(ROUND( G17 * 0.16, 2),  \"$ #,##0.00 ;\")","v":"$ 0.00 "}]
[null,null,null,null,null,"TOTAL M.N.",{"$f":"TEXT(ROUND( G17 * 1.16, 2),  \"$ #,##0.00 ;\")","v":"$ 0.00 "}]